Workbook

Sheet Instructions_First Time Use
A1: Instructions for First Time Use
A3: This workbook uses macros which need to be enabled for the first use only.
A5: By default, when you first open a macro-enabled workbook you’ll see a yellow “SECURITY WARNING” bar appear just underneath the ribbon. Clicking the “Enable Content” button will enable macros.

Sheet Instructions
A1: Background
A2: This calculator provides estimates of long-term cumulative reduction credits for a variety of structural stormwater control measures (SCMs) based on design capacity relative to contributing impervious cover (IC) drainage area. For structural SCMs, the design capacity is referred to as the Design Storage Volume (DSV) and is equal to the physical storage capacity of the SCM to hold water (e.g., ponding and void space volume). The calculator also provides cumulative performance reduction estimates for semi-structural SCMs that accomplish diversion of IC runoff to receiving pervious areas (i.e., IC disconnection) based on the ratio of IC source area to receiving pervious area according to hydrologic soil group (HSG) type (e.g., 2:1, HSG A, B, C or D)). The cumulative performance estimates represent the net reductions that would be accomplished if IC runoff from all storm events for long-term rainfall record (e.g., 20 years) were to be routed through the selected SCM. The calculator includes average annual reduction estimates for total phosphorus, total nitrogen, total suspended solids, zinc, freshwater and marine water indicator bacteria, and runoff volume (only for infiltration SCMs). The reduction estimates provided by this calculator are consistent with the methodologies used to develop the reduction estimates presented in Attachment 3 to Appendix F of the MA and NH MS4 permits (https://www3.epa.gov/region1/npdes/stormwater/nh/2017-appendix-f-attach-3-sms4-nh-mod.pdf). This performance calculator uses the same values and performance data as presented in the MA and NH Small MS4 General Permit from EPA Region 1. The land uses have been consolidated into 4 types consistent with the most representative categories in development scenarios. The Stormwater Control Measures (SCM) or BMPs use the 10 classification categories outlined in the permit and infiltration rates by soil type range from 0.17 in/hr (HSG D soils) to 8.27 in/hr (HSG A soils). As with simplified approaches, choose the most conservative category that generally represents site and system conditions.
A3: Objective
A4: This calculator was designed to aid in SCM selection, design, and planning level performance assessment. The performance objectives can be optimized by estimated pollutant load reduction, runoff volume reduction, cost, or other related outcomes. Because this is primarily a design tool and not a tool for crediting, the mimimum depth of 0.1 inch is required for the Physical Storage Capacity (depth of runoff treated). While a PSC ≤ 0.1 inch will get credit using the BATT (an EPA approved crediting tool), a PSC of at least 0.1 inch should be targeted for design. To optimize cost/% treatment, the DSV should be optimized to treat a PSC of about 0.4 inch. This optimized point may be seen as the knee on the performance curves.
A5: A note on drainage area delineation
A6: To simplify the estimates and aid in design, only impervious area (IA) is evaluated. The x-axis on the performance curves is the depth of runoff treated over the IA. This runoff depth multiplied by the impervious area gives volume of water to be stored in the SCM void space, named the Design Storage Volume (DSV).
A7: A note of system selection
A8: Model your system according to the classification that best suits your treatment. There are crosswalks available to help reference model system select. Biofiltration assumes no infiltration thus if you want to model performance of bioretention where infiltration is enhanced or anticipated then you should model the system as an infiltration basin as that will more accurately account for volume losses to infiltration. The DSV may require design assumptions for the porosity of various types of media. We recommend using a porosity of 0.2 for soil media, 0.3 for sand or peastone, and 0.4 for large diameter reservoir stone.
A9: Calculator Instructions
A10: For information on the reference tables used in the calculator, see the worksheet titled "Reference Tables."
A11: For information on the how DSV is calculated per Appendix F, Table 3.5, see the worksheet titled "DSV_App F Table 3-5."
A12: For a walk-through example of what the performance curves are and how to calculate reductions by hand, see the worksheet titled "Performance Curve Example."
A13: For any input for site information, SCM design, and performance output, use the worksheet titled "Input_Design_Output."
A14: For a summary of the output, see the worksheet titled "Output_Summary."
A16: The Input_Design_Output worksheet was designed to scroll down the page and enter information. It is divided into three general sections from top to bottom - 1) Input: Site & SCM - General location and site details including the selected SCM 2) Input: SCM Design - Design parameters for the selected SCM. Note that this section has all cells unlocked for number entries, formulas, and Goal Seek to aid in the design and sizing process. All orange cells are required and used in the calculations; if left blank, they are calculated as 0. 3) Output - All calculations and output are in this section. The intermediate calculations such as DSV and PSC are shown. Using those values and site/SCM input, the following are calculated and reported: load reductions, pollutant load export rates, annual removal, and costs estimates, and estimated annual O&M hours.
A17: Cell Legend
A18: Black/White = non-essential cells for notes or non-editable cells (output)
A19: Orange = REQUIRED input for caculation
A20: Grey = explanatory text
A21: Yellow = Optional known DSV to get output while skipping the design section
A23: Get Started!
A24: An example bioretention (same as the Performance Curve Example example) has been entered in the Input_Design_Output worksheet. Note that the output from the example is also in the Output_Summary worksheet. As you replace the example SCM1 with your own input information, the Output_Summary will automatically update!

Sheet Reference Tables
A1: Reference Tables
B2: Crosswalk 1 | D2: Costs | E2: O&M
B3: SCM 2 | C3: Applicable Performance Curve 3 | D3: Total Costs (2020) ($/cf DSV) 4 | E3: Annual Maintenance Hours (hr/ac/yr) 5
B4: ='Tables (hidden_locked)'!P3 -> Biofiltration (w/ underdrain) | C4: ='Tables (hidden_locked)'!Q3 -> Biofiltration | D4: ='Tables (hidden_locked)'!R3 -> 15.87022277 | E4: ='Tables (hidden_locked)'!S3 -> 20.7
B5: ='Tables (hidden_locked)'!P4 -> Bioretention/Rain Garden (no underdrains) | C5: ='Tables (hidden_locked)'!Q4 -> Infiltration Basin | D5: ='Tables (hidden_locked)'!R4 -> 15.87022277 | E5: ='Tables (hidden_locked)'!S4 -> 20.7
B6: ='Tables (hidden_locked)'!P5 -> Enhanced Biofiltration w/ Internal Storage Reservoir (ISR) (no infiltration) | C6: ='Tables (hidden_locked)'!Q5 -> Enhanced Biofiltration With ISR | D6: ='Tables (hidden_locked)'!R5 -> 16.02453309 | E6: ='Tables (hidden_locked)'!S5 -> 20.7
B7: ='Tables (hidden_locked)'!P6 -> Extended Dry Detention Basin | C7: ='Tables (hidden_locked)'!Q6 -> Dry Pond | D7: ='Tables (hidden_locked)'!R6 -> 6.979574412 | E7: ='Tables (hidden_locked)'!S6 -> 24
B8: ='Tables (hidden_locked)'!P7 -> Gravel Wetland | C8: ='Tables (hidden_locked)'!Q7 -> Subsurface Gravel Wetland | D8: ='Tables (hidden_locked)'!R7 -> 9.009348603 | E8: ='Tables (hidden_locked)'!S7 -> 21.7
B9: ='Tables (hidden_locked)'!P8 -> IC Disconnection | C9: ='Tables (hidden_locked)'!Q8 -> IC Disconnection | D9: ='Tables (hidden_locked)'!R8 -> Varies | E9: ='Tables (hidden_locked)'!S8 -> Varies
B10: ='Tables (hidden_locked)'!P9 -> Infiltration Trench | C10: ='Tables (hidden_locked)'!Q9 -> Infiltration Trench | D10: ='Tables (hidden_locked)'!R9 -> 12.81962647 | E10: ='Tables (hidden_locked)'!S9 -> Unknown
B11: ='Tables (hidden_locked)'!P10 -> Porous Pavement w/ impermeable underliner & underdrain | C11: ='Tables (hidden_locked)'!Q10 -> Porous Pavement | D11: ='Tables (hidden_locked)'!R10 -> 5.460211275 | E11: ='Tables (hidden_locked)'!S10 -> 6
B12: ='Tables (hidden_locked)'!P11 -> Porous Pavement w/ subsurface infiltration | C12: ='Tables (hidden_locked)'!Q11 -> Infiltration Trench | D12: ='Tables (hidden_locked)'!R11 -> 5.460211275 | E12: ='Tables (hidden_locked)'!S11 -> 6
B13: ='Tables (hidden_locked)'!P12 -> Sand Filter w/ underdrain | C13: ='Tables (hidden_locked)'!Q12 -> Sand Filter | D13: ='Tables (hidden_locked)'!R12 -> 18.41040802 | E13: ='Tables (hidden_locked)'!S12 -> 28.5
B14: ='Tables (hidden_locked)'!P13 -> Subsurface Infiltration | C14: ='Tables (hidden_locked)'!Q13 -> Infiltration Trench | D14: ='Tables (hidden_locked)'!R13 -> Varies | E14: ='Tables (hidden_locked)'!S13 -> Varies
B15: ='Tables (hidden_locked)'!P14 -> Surface Infiltration Practice | C15: ='Tables (hidden_locked)'!Q14 -> Infiltration Basin | D15: ='Tables (hidden_locked)'!R14 -> 6.409813235 | E15: ='Tables (hidden_locked)'!S14 -> 20.7
B16: ='Tables (hidden_locked)'!P15 -> Water Quality Grass Swale w/ Detention | C16: ='Tables (hidden_locked)'!Q15 -> Grass Swale | D16: ='Tables (hidden_locked)'!R15 -> 5.709481789 | E16: ='Tables (hidden_locked)'!S15 -> 9.5
B17: ='Tables (hidden_locked)'!P16 -> Wet Pond | C17: ='Tables (hidden_locked)'!Q16 -> Wet Pond | D17: ='Tables (hidden_locked)'!R16 -> 6.979574412 | E17: ='Tables (hidden_locked)'!S16 -> 28
A18: 1 | B18: For a more comprehensive crosswalk between MA and NH manuals and Appendix F, click the link to the right. | E18: UNHSC Crosswalk
A19: 2 | B19: Stormwater Control Measure type as described by Appendix F, click the link to the right. | E19: NH Small MS4 General Permit, Appendix F - Attachment 3, EPA Region 1 - 2017
A20: 3 | B20: See Appendix F and UNHSC Nomographs for Performance Curves, click the link to the right. | E20: UNHSC Nomographs - 2020
A21: 4 | B21: Total SCM costs with a multiplier of 1 for undeveloped areas, updated to 2020 dollars, click the link to the right. | E21: EPA Cost Memo - 2016
A22: 5 | B22: Total yearly maintenance hours per acre IC | E22: EPA Cost Memo - 2016
B24: Export Rates
C25: ='Tables (hidden_locked)'!V2 -> Vol | D25: ='Tables (hidden_locked)'!W2 -> P | E25: ='Tables (hidden_locked)'!X2 -> N | F25: ='Tables (hidden_locked)'!Y2 -> TSS | G25: ='Tables (hidden_locked)'!Z2 -> E. coli | H25: ='Tables (hidden_locked)'!AA2 -> Enterococcus
B26: ='Tables (hidden_locked)'!U3 -> Land Use | C26: ='Tables (hidden_locked)'!V3 -> (cf/ac-yr) | D26: ='Tables (hidden_locked)'!W3 -> (lb/ac-yr) | E26: ='Tables (hidden_locked)'!X3 -> 0 | F26: ='Tables (hidden_locked)'!Y3 -> 0 | G26: ='Tables (hidden_locked)'!Z3 -> (Billion MPN/ac/yr) | H26: ='Tables (hidden_locked)'!AA3 -> 0
B27: ='Tables (hidden_locked)'!U4 -> Low-Density Residential "Rural" | C27: ='Tables (hidden_locked)'!V4 -> 139984.416 | D27: ='Tables (hidden_locked)'!W4 -> 1.52 | E27: ='Tables (hidden_locked)'!X4 -> 14.1 | F27: ='Tables (hidden_locked)'!Y4 -> 439 | G27: ='Tables (hidden_locked)'!Z4 -> 6.4 | H27: ='Tables (hidden_locked)'!AA4 -> 497
B28: ='Tables (hidden_locked)'!U5 -> Medium-Density Residential | C28: ='Tables (hidden_locked)'!V5 -> 139984.416 | D28: ='Tables (hidden_locked)'!W5 -> 1.96 | E28: ='Tables (hidden_locked)'!X5 -> 14.1 | F28: ='Tables (hidden_locked)'!Y5 -> 439 | G28: ='Tables (hidden_locked)'!Z5 -> 6.4 | H28: ='Tables (hidden_locked)'!AA5 -> 497
B29: ='Tables (hidden_locked)'!U6 -> Multi-Family and High-Density Residential | C29: ='Tables (hidden_locked)'!V6 -> 139984.416 | D29: ='Tables (hidden_locked)'!W6 -> 2.32 | E29: ='Tables (hidden_locked)'!X6 -> 14.1 | F29: ='Tables (hidden_locked)'!Y6 -> 439 | G29: ='Tables (hidden_locked)'!Z6 -> 6.4 | H29: ='Tables (hidden_locked)'!AA6 -> 497
B30: ='Tables (hidden_locked)'!U7 -> Commercial and Industrial | C30: ='Tables (hidden_locked)'!V7 -> 139984.416 | D30: ='Tables (hidden_locked)'!W7 -> 1.78 | E30: ='Tables (hidden_locked)'!X7 -> 15 | F30: ='Tables (hidden_locked)'!Y7 -> 377.4 | G30: ='Tables (hidden_locked)'!Z7 -> 6.4 | H30: ='Tables (hidden_locked)'!AA7 -> 497
B33: Cost Multiplier6
B34: Location | C34: Example Cost Multiplier
B35: New SCM in undeveloped area | C35: 1
B36: New SCM in partially developed area | C36: 1.5
B37: New SCM in developed area | C37: 2
B38: Difficult installation in highly urban settings | C38: 3
A39: 6 | B39: Cost Adjustment Factors from Table 2 | C39: EPA Cost Memo - 2016

Sheet DSV_App F Table 3-5
A1: Method for determining stormwater control design storage volume (DSV) (i.e., capacity) using Long-term cumulative performance curves1
A2: Stormwater Control Type | B2: Description | C2: Applicable Structural Stormwater Control Performance Curve | D2: Method for calculating Design Storage Capacity to Estimate Long-term Cumulative Reduction Performances and Estimate Costs
A3: Infiltration Trench | B3: Provides temporary storage of runoff using the void spaces within the soil/sand/gravel mixture that is used to backfill the trench for subsequent infiltration into the surrounding sub-soils. | C3: Infiltration Trench (6 infiltration rates: 0.17, 0.27, 0.52, 1.02, 2.41 and 8.27 inches per hour) | D3: DSV = void space volumes of stone and sand layers DSV = (Atrench x Dstone x nstone )+ (Atrench x Dsand x nsand)
A4: Surface Infiltration Practice | B4: Provides temporary storage of runoff through surface ponding (e.g., basin or swale) for subsequent infiltration into the underlying soils. | C4: Surface Infiltration (6 infiltration rates: 0.17, 0.27, 0.52, 1.02, 2.41 and 8.27 inches per hour) | D4: DSV = Water volume of storage structure before bypass. Example for linear trapezoidal vegetated swale DSV = (L x ((Wbottom+Wtop@Dmax )/2) x D)
A5: Bio-retention/Rain Garden (no underdrains) | B5: Provides temporary storage of runoff through surface ponding and possibly void spaces within the soil/sand/washed stone mixture that is used to filter runoff prior to infiltration into underlying soils. | C5: Surface Infiltration (6 infiltration rates: 0.17, 0.27, 0.52, 1.02, 2.41 and 8.27 inches per hour) | D5: DSV = Ponding water storage volume and void space volumes of soil filter media: DSV = (Apond x Dpond) + (Asoil x Dsoil x nsoil mix)
A6: Subsurface Infiltration | B6: Provides temporary storage of runoff using the combination of storage structures (e.g., galleys, chambers, pipes, etc.) and void spaces within the washed stone that is used to backfill the system for subsequent infiltration into the surrounding sub-soils. | C6: Infiltration Trench (6 infiltration rates: 0.17, 0.27, 0.52, 1.02, 2.41 and 8.27 inches per hour) | D6: DSV = Water storage volume of storage units and void space volumes of backfill materials. Example for subsurface galleys backfilled with washed stone: DSV = (L x W x D)galley + (Abackfill x Dstone x nstone)
A7: Bio-filtration (w/underdrain) | B7: Provides temporary surface ponding storage of runoff for filtering through an engineered soil media. The storage capacity includes void spaces in the filter media and temporary ponding at the surface. After runoff has passed through the filter media it is collected by an under-drain pipe for discharge. Manufactured or packaged bio-filter systems such as tree box filters may be suitable for using the bio-filtration performance results. | C7: Bio-filtration | D7: DSV = Ponding water storage volume and void space volume of soil filter media. DSV = (Abed x Dponding)+ (Abed x Dsoil x nsoil)
A8: Enhanced Bio-filtration w/ Internal Storage Reservoir (ISR) (no infiltration) | B8: Provides temporary storage of runoff for filtering through an engineered soil media, augmented for enhanced phosphorus removal, followed by detention and denitrification in a subsurface internal storage reservoir (ISR) comprised of gravel. An elevated outlet control at the top of the ISR is designed to provide a retention time of at least 24 hours in the system to allow for sufficient time for denitrification and nitrogen reduction to occur prior to discharge. The design storage capacity for using the cumulative performance curves is comprised of void spaces in the filter media, temporary ponding at the surface of the practice and the void spaces in the gravel ISR. | C8: Enhanced Bio-filtration w/ISR | D8: DSV = Ponding water storage volume and void space volume of soil filter media and gravel ISR. DSV = (Abed x Dponding)+ (Abed x Dsoil x nsoil) + (AISR x Dgravel x ngravel)
A9: Gravel Wetland | B9: Based on design by the UNH Stormwater Center (UNHSC). Provides temporary surface ponding storage of runoff in a vegetated wetland cell that is eventually routed to an underlying saturated gravel internal storage reservoir (ISR) for nitrogen treatment. Outflow is controlled by an elevated orifice that has its invert elevation equal to the top of the ISR layer and provides a retention time of at least 24 hours. | C9: Gravel Wetland | D9: DSV = pretreatment volume + ponding volume + void space volume of gravel ISR. DSV = (A pretreatment x DpreTreatment)+ (A wetland x Dponding) + (AISR x Dgravel x ngravel)
A10: Porous Pavement with subsurface infiltration | B10: Provides filtering of runoff through a filter course and temporary storage of runoff within the void spaces of a subsurface gravel reservoir prior to infiltration into subsoils. | C10: Infiltration Trench (6 infiltration rates: 0.17, 0.27, 0.52, 1.02, 2.41 and 8.27 inches per hour) | D10: DSV = void space volumes of gravel layer DSV = (Apavement x Dstone x nstone )
A11: Porous pavement w/ impermeable underliner w/underdrain | B11: Provides filtering of runoff through a filter course and temporary storage of runoff within the void spaces prior to discharge by way of an underdrain. | C11: Porous Pavement | D11: Depth of Filter Course = D FC
A12: Sand Filter w/underdrain | B12: Provides filtering of runoff through a sand filter course and temporary storage of runoff through surface ponding and within void spaces of the sand and washed stone layers prior to discharge by way of an underdrain. | C12: Sand Filter | D12: DSV = pretreatment volume + ponding volume + void space volume of sand and washed stone layers. DSV = (A pretreatment x DpreTreatment)+ (A bed x Dponding) + (Abed x Dsand x nsand) + (Abed x Dstone x nstone)
A13: Wet Pond | B13: Provides treatment of runoff through routing through permanent pool. | C13: Wet Pond | D13: DSV= Permanent pool volume prior to high flow bypass DSV=Apond x Dpond (does not include pretreatment volume)
A14: Extended Dry Detention Basin | B14: Provides temporary detention storage for the design storage volume to drain in 24 hours through multiple out let controls. | C14: Dry Pond | D14: DSV= Ponding volume prior to high flow bypass DSV=Apond x Dpond (does not include pretreatment volume)
A15: Water Quality Grass Swale w/ Detention | B15: Conveys runoff through an open channel vegetated with grass with temporary storage provided by permeable check dams. Primary removal mechanism is settling during temporary storage. | C15: Water Quality Grass Swale w/ Detention | D15: 2 DSV = Volume of swale at full depth of temporary storage: DSV = (L x ((Wbottom+Wtop@Dmax )/2) x D)
A16: Footnotes:
A17: DSV= Design Storage Volume = physical storage capacity to hold water
A18: VSV=Void Space Volume
A19: L= length, W= width, D= depth at design capacity before bypass, n=porosity fill material, A= average surface area for calculating volume
A20: Infiltration rate = saturated soil hydraulic conductivity
A21: 1 | B21: NH Small MS4 General Permit, Appendix F - Attachment 3, EPA Region 1 - 2017
A22: 2 | B22: Note the corrected DSV calculation using the same equation as the Surface Infiltration Practice. The published DSV calculation incorrectly added a dimension LxAxD=ft4. It could also be calculated as DSV = Lswale x AX-sect. swale

Sheet Performance Curve Example

Sheet Updates (hidden)
A1: Version | B1: Updates | C1: Known issues to fix
A2: 2 | B2: major updates from v1, most important was removal of P and examples of design and credit calculation using performance curve | C2: Input: Applicable Performance Curve for SCM2 - 5 not updating when new SCM selected
A3: 2.1 | B3: Input: Applicable Performance Curve for SCM2 - 5 update fix
A4: 2.2 | B4: PSC=0 added to all tables for full interpolation. Warning language added based on PSC size to encourage mimimum and optimal sizing, orange input cell for surface basin and swale changed from W to Dponding. Added note to EPA DSV table for swale error

Sheet Tables (hidden_locked) (hidden)
A1: *** All tables are saved as a defined name for use and quick updating in formulas. If the Name Manager values are correct and updated, all formulas should update immediately. | C1: Performance Curves | P1: Crosswalk | R1: Costs | S1: O&M Hours | U1: Export Rates | AD1: Bacteria Locations | AF1: HSG | AG1: as numeric | AJ1: SCM Design Parameters (for conditional formatting)
E2: Infiltration Rate (in/hr) | F2: BMP Capacity: Depth of Runoff from Impervious Area (inches) | G2: Runoff Volume Reduction | H2: Phosphorus Load Reduction | I2: Nitrogen Load Reduction | J2: TSS Load Reduction | K2: Zinc Load Reduction | L2: Fecal Indicator Bacteria Load Reduction | P2: SCM | Q2: Applicable Performance Curve | R2: Total Costs (Rural x1) ($/DSV) | S2: Annual Maintenance Hours (hr/yr/IC) | V2: Vol | W2: P | X2: N | Y2: TSS | Z2: E. coli | AA2: Enterococcus | AB2: Abbreviation | AD2: Inland | AF2: A | AG2: 1 | AJ2: design parameter | AL2: Biofiltration (w/ underdrain) | AM2: Bioretention/Rain Garden (no underdrains) | AN2: Enhanced Biofiltration w/ Internal Storage Reservoir (ISR) (no infiltration) | AO2: Extended Dry Detention Basin | AP2: Gravel Wetland | AQ2: IC Disconnection | AR2: Infiltration Trench | AS2: Porous pavement w/ impermeable underliner & underdrain | AT2: Porous Pavement w/ subsurface infiltration | AU2: Sand Filter w/ underdrain | AV2: Subsurface Infiltration | AW2: Surface Infiltration Practice | AX2: Water Quality Grass Swale w/ Detention | AY2: Wet Pond
D3: Curve | E3: IR | F3: PSC | G3: Volume | H3: TP | I3: TN | J3: TSS | K3: TZn | L3: FIB | P3: Biofiltration (w/ underdrain) | Q3: Biofiltration | R3: 15.87022277 | S3: 20.7 | U3: Land Use | V3: (cf/ac-yr) | W3: (lb/ac-yr) | Z3: (Billion MPN/ac/yr) | AD3: Coastal | AF3: B | AG3: 2 | AJ3: Width at top @ Dmax | AK3: WDmax | AW3: TRUE | AX3: TRUE
D4: Biofiltration | F4: 0 | H4: 0 | I4: 0 | J4: 0 | K4: 0 | L4: 0 | P4: Bioretention/Rain Garden (no underdrains) | Q4: Infiltration Basin | R4: 15.87022277 | S4: 20.7 | U4: Low-Density Residential "Rural" | V4: =0.936*41.2/12*43560 -> 139984.416 | W4: 1.52 | X4: 14.1 | Y4: 439 | Z4: 6.4 | AA4: 497 | AB4: Low Res. | AF4: C | AG4: 3 | AJ4: Width at bed | AK4: Wbottom | AW4: TRUE | AX4: TRUE
D5: Biofiltration | F5: 0.1 | H5: 0.14 | I5: 0.09 | J5: 0.44 | K5: 0.68 | L5: 0.1099 | P5: Enhanced Biofiltration w/ Internal Storage Reservoir (ISR) (no infiltration) | Q5: Enhanced Biofiltration With ISR | R5: 16.02453309 | S5: 20.7 | U5: Medium-Density Residential | V5: =0.936*41.2/12*43560 -> 139984.416 | W5: 1.96 | X5: 14.1 | Y5: 439 | Z5: 6.4 | AA5: 497 | AB5: Med Res. | AF5: D | AG5: 4 | AJ5: Area of pretreatment | AK5: Apretreatment | AP5: TRUE | AU5: TRUE
D6: Biofiltration | F6: 0.2 | H6: 0.25 | I6: 0.16 | J6: 0.69 | K6: 0.88 | L6: 0.185 | P6: Extended Dry Detention Basin | Q6: Dry Pond | R6: 6.979574412 | S6: 24 | U6: Multi-Family and High-Density Residential | V6: 139984.416 | W6: 2.32 | X6: 14.1 | Y6: 439 | Z6: 6.4 | AA6: 497 | AB6: Multi / High Res. | AJ6: Depth of pretreatment | AK6: Dpretreatment | AP6: TRUE | AU6: TRUE
A7: Lookup Tables (locked and hidden) | D7: Biofiltration | F7: 0.4 | H7: 0.37 | I7: 0.23 | J7: 0.91 | K7: 0.95 | L7: 0.3021 | P7: Gravel Wetland | Q7: Subsurface Gravel Wetland | R7: 9.009348603 | S7: 21.7 | U7: Commercial and Industrial | V7: 139984.416 | W7: 1.78 | X7: 15 | Y7: 377.4 | Z7: 6.4 | AA7: 497 | AB7: Comm. / Ind. | AJ7: Depth of filter course | AK7: DFC | AS7: TRUE
A8: performance curves | D8: Biofiltration | F8: 0.6 | H8: 0.44 | I8: 0.28 | J8: 0.97 | K8: 0.96 | L8: 0.4015 | P8: IC Disconnection | Q8: IC Disconnection | R8: Varies | S8: Varies | AJ8: Area of pond | AK8: Apond | AL8: TRUE | AM8: TRUE | AN8: TRUE | AO8: TRUE | AP8: TRUE | AU8: TRUE | AY8: TRUE
A9: crosswalk | D9: Biofiltration | F9: 0.8 | H9: 0.48 | I9: 0.31 | J9: 0.98 | K9: 0.96 | L9: 0.4836 | P9: Infiltration Trench | Q9: Infiltration Trench | R9: 12.81962647 | S9: Unknown | AJ9: Depth of ponding | AK9: Dponding | AL9: TRUE | AM9: TRUE | AN9: TRUE | AO9: TRUE | AP9: TRUE | AU9: TRUE | AW9: TRUE | AX9: TRUE | AY9: TRUE
A10: costs | D10: Biofiltration | F10: 1 | H10: 0.53 | I10: 0.32 | J10: 0.99 | K10: 0.97 | L10: 0.5504 | P10: Porous Pavement w/ impermeable underliner & underdrain | Q10: Porous Pavement | R10: 5.460211275 | S10: 6 | AJ10: Area of media | AK10: Asoil | AL10: TRUE | AM10: TRUE | AN10: TRUE
A11: O&M | D11: Biofiltration | F11: 1.5 | H11: 0.58 | I11: 0.37 | J11: 1 | K11: 0.98 | L11: 0.6681 | P11: Porous Pavement w/ subsurface infiltration | Q11: Infiltration Trench | R11: 5.460211275 | S11: 6 | AJ11: Depth of media | AK11: Dsoil | AL11: TRUE | AM11: TRUE | AN11: TRUE
A12: loading rates | D12: Biofiltration | F12: 2 | H12: 0.63 | I12: 0.4 | J12: 1 | K12: 0.99 | L12: 0.747 | P12: Sand Filter w/ underdrain | Q12: Sand Filter | R12: 18.41040802 | S12: 28.5 | AJ12: Porosity of media (typical ~0.2) | AK12: ηsoil | AL12: TRUE | AM12: TRUE | AN12: TRUE
D13: Dry Pond | F13: 0 | H13: 0 | I13: 0 | J13: 0 | K13: 0 | L13: 0 | P13: Subsurface Infiltration | Q13: Infiltration Trench | R13: Varies | S13: Varies | AJ13: Area of ISR | AK13: AISR | AN13: TRUE | AP13: TRUE
D14: Dry Pond | F14: 0.1 | H14: 0.0218 | I14: 0.01401428571 | J14: 0.18 | K14: 0.53 | L14: 0 | P14: Surface Infiltration Practice | Q14: Infiltration Basin | R14: 6.409813235 | S14: 20.7 | AJ14: Depth of gravel/stone | AK14: Dgravel | AN14: TRUE | AP14: TRUE | AR14: TRUE | AT14: TRUE | AU14: TRUE | AV14: TRUE
D15: Dry Pond | F15: 0.2 | H15: 0.04546666667 | I15: 0.02909866667 | J15: 0.31 | K15: 0.67 | L15: 3.652829585e-21 | P15: Water Quality Grass Swale w/ Detention | Q15: Grass Swale | R15: 5.709481789 | S15: 9.5 | AJ15: Porosity of gravel/stone (typical ~0.4) | AK15: ηgravel | AN15: TRUE | AP15: TRUE | AR15: TRUE | AT15: TRUE | AU15: TRUE | AV15: TRUE
D16: Dry Pond | F16: 0.4 | H16: 0.0916 | I16: 0.05694054054 | J16: 0.38 | K16: 0.68 | L16: 0.0007 | P16: Wet Pond | Q16: Wet Pond | R16: 6.979574412 | S16: 28 | AJ16: Area of sand | AK16: Asand | AU16: TRUE
D17: Dry Pond | F17: 0.6 | H17: 0.1344666667 | I17: 0.08556969697 | J17: 0.4 | K17: 0.69 | L17: 0.004 | AJ17: Depth of sand | AK17: Dsand | AR17: TRUE | AU17: TRUE
D18: Dry Pond | F18: 0.8 | H18: 0.1743666667 | I18: 0.1126118056 | J18: 0.44 | K18: 0.72 | L18: 0.0085 | AJ18: Porosity of sand (typical ~0.3) | AK18: ηsand | AR18: TRUE | AU18: TRUE
D19: Dry Pond | F19: 1 | H19: 0.2114 | I19: 0.1276377358 | J19: 0.46 | K19: 0.73 | L19: 0.0137 | AJ19: Area cross-section of galley/chambers/pipes | AK19: Ax-section galley | AV19: TRUE
D20: Dry Pond | F20: 1.5 | H20: 0.2937333333 | I20: 0.1873816092 | J20: 0.47 | K20: 0.74 | L20: 0.028 | Q20: Infiltration Curves | AJ20: Width | AK20: W | AR20: TRUE | AT20: TRUE | AU20: TRUE | AV20: TRUE
D21: Dry Pond | F21: 2 | H21: 0.3643 | I21: 0.2313015873 | J21: 0.49 | K21: 0.76 | L21: 0.0426 | Q21: Infiltration Basin | AJ21: Length | AK21: L | AR21: TRUE | AT21: TRUE | AU21: TRUE | AV21: TRUE | AW21: TRUE | AX21: TRUE
D22: Enhanced Biofiltration With ISR | F22: 0 | H22: 0 | I22: 0 | J22: 0 | K22: 0 | L22: 0 | Q22: Infiltration Trench | AJ22: Pervious area | AK22: Aperv | AQ22: TRUE
D23: Enhanced Biofiltration With ISR | F23: 0.1 | H23: 0.19 | I23: 0.32 | J23: 0.44 | K23: 0.68 | L23: 0.2789 | AJ23: Pervious Hydrologic Soil Group | AK23: HSGperv | AQ23: TRUE
D24: Enhanced Biofiltration With ISR | F24: 0.2 | H24: 0.34 | I24: 0.44 | J24: 0.69 | K24: 0.88 | L24: 0.4492
D25: Enhanced Biofiltration With ISR | F25: 0.4 | H25: 0.53 | I25: 0.58 | J25: 0.91 | K25: 0.95 | L25: 0.6416
D26: Enhanced Biofiltration With ISR | F26: 0.6 | H26: 0.64 | I26: 0.66 | J26: 0.97 | K26: 0.96 | L26: 0.7498
D27: Enhanced Biofiltration With ISR | F27: 0.8 | H27: 0.71 | I27: 0.71 | J27: 0.98 | K27: 0.96 | L27: 0.8141
D28: Enhanced Biofiltration With ISR | F28: 1 | H28: 0.76 | I28: 0.75 | J28: 0.99 | K28: 0.97 | L28: 0.8514
D29: Enhanced Biofiltration With ISR | F29: 1.5 | H29: 0.84 | I29: 0.82 | J29: 1 | K29: 0.98 | L29: 0.8939
D30: Enhanced Biofiltration With ISR | F30: 2 | H30: 0.89 | I30: 0.86 | J30: 1 | K30: 0.99 | L30: 0.9129
A31: extra rows hidden | D31: Grass Swale | F31: 0 | H31: 0 | I31: 0 | J31: 0 | K31: 0 | L31: 0
D32: Grass Swale | F32: 0.1 | H32: 0.0218 | I32: 0.01401428571 | J32: 0.29 | K32: 0.62 | L32: 0
D33: Grass Swale | F33: 0.2 | H33: 0.04546666667 | I33: 0.02909866667 | J33: 0.44 | K33: 0.75 | L33: 0
D34: Grass Swale | F34: 0.4 | H34: 0.0916 | I34: 0.05694054054 | J34: 0.61 | K34: 0.86 | L34: 0
D35: Grass Swale | F35: 0.6 | H35: 0.1344666667 | I35: 0.08556969697 | J35: 0.7 | K35: 0.91 | L35: 0
D36: Grass Swale | F36: 0.8 | H36: 0.1743666667 | I36: 0.1126118056 | J36: 0.76 | K36: 0.94 | L36: 0
D37: Grass Swale | F37: 1 | H37: 0.2114 | I37: 0.1276377358 | J37: 0.8 | K37: 0.95 | L37: 0
D38: Grass Swale | F38: 1.5 | H38: 0.2937333333 | I38: 0.1873816092 | J38: 0.87 | K38: 0.97 | L38: 0
D39: Grass Swale | F39: 2 | H39: 0.3643 | I39: 0.2313015873 | J39: 0.9 | K39: 0.99 | L39: 0
D40: Porous Pavement | F40: 0 | H40: 0 | I40: 0 | J40: 0 | K40: 0 | L40: 0
D41: Porous Pavement | F41: 12 | H41: 0.6185070217 | I41: 0.76 | J41: 0.92 | K41: 0.85 | L41: 0
D42: Porous Pavement | F42: 18 | H42: 0.6968760055 | I42: 0.77 | J42: 0.94 | K42: 0.97 | L42: 0
D43: Porous Pavement | F43: 24 | H43: 0.7458940601 | I43: 0.77 | J43: 0.96 | K43: 0.97 | L43: 0
D44: Porous Pavement | F44: 32 | H44: 0.7848096432 | I44: 0.79 | J44: 0.97 | K44: 0.98 | L44: 0
D45: Sand Filter | F45: 0 | H45: 0 | I45: 0 | J45: 0 | K45: 0 | L45: 0
D46: Sand Filter | F46: 0.1 | H46: 0.14 | I46: 0.09 | J46: 0.44 | K46: 0.68 | L46: 0.3364
D47: Sand Filter | F47: 0.2 | H47: 0.25 | I47: 0.16 | J47: 0.69 | K47: 0.88 | L47: 0.522
D48: Sand Filter | F48: 0.4 | H48: 0.37 | I48: 0.23 | J48: 0.91 | K48: 0.95 | L48: 0.7222
D49: Sand Filter | F49: 0.6 | H49: 0.44 | I49: 0.28 | J49: 0.97 | K49: 0.96 | L49: 0.8168
D50: Sand Filter | F50: 0.8 | H50: 0.48 | I50: 0.31 | J50: 0.98 | K50: 0.96 | L50: 0.8574
D51: Sand Filter | F51: 1 | H51: 0.53 | I51: 0.32 | J51: 0.99 | K51: 0.97 | L51: 0.8768
D52: Sand Filter | F52: 1.5 | H52: 0.58 | I52: 0.37 | J52: 1 | K52: 0.98 | L52: 0.9022
D53: Sand Filter | F53: 2 | H53: 0.63 | I53: 0.4 | J53: 1 | K53: 0.99 | L53: 0.919
D54: Subsurface Gravel Wetland | F54: 0 | H54: 0 | I54: 0 | J54: 0 | K54: 0 | L54: 0
D55: Subsurface Gravel Wetland | F55: 0.1 | H55: 0.1927813218 | I55: 0.22 | J55: 0.48 | K55: 0.57 | L55: 0.3029
D56: Subsurface Gravel Wetland | F56: 0.2 | H56: 0.2637544501 | I56: 0.33 | J56: 0.61 | K56: 0.68 | L56: 0.4721
D57: Subsurface Gravel Wetland | F57: 0.4 | H57: 0.413858214 | I57: 0.48 | J57: 0.82 | K57: 0.83 | L57: 0.6551
D58: Subsurface Gravel Wetland | F58: 0.6 | H58: 0.5124922119 | I58: 0.57 | J58: 0.91 | K58: 0.88 | L58: 0.7263
D59: Subsurface Gravel Wetland | F59: 0.8 | H59: 0.5739660119 | I59: 0.64 | J59: 0.95 | K59: 0.9 | L59: 0.748
D60: Subsurface Gravel Wetland | F60: 1 | H60: 0.6109212137 | I60: 0.68 | J60: 0.97 | K60: 0.9 | L60: 0.7607
D61: Subsurface Gravel Wetland | F61: 1.5 | H61: 0.6492993712 | I61: 0.74 | J61: 0.99 | K61: 0.91 | L61: 0.7839
D62: Subsurface Gravel Wetland | F62: 2 | H62: 0.6629063362 | I62: 0.79 | J62: 0.99 | K62: 0.92 | L62: 0.8067
D63: Wet Pond | F63: 0 | H63: 0 | I63: 0 | J63: 0 | K63: 0 | L63: 0
D64: Wet Pond | F64: 0.1 | H64: 0.14 | I64: 0.09 | J64: 0.3 | K64: 0.59 | L64: 0.1452
D65: Wet Pond | F65: 0.2 | H65: 0.25 | I65: 0.16 | J65: 0.44 | K65: 0.71 | L65: 0.237
D66: Wet Pond | F66: 0.4 | H66: 0.37 | I66: 0.23 | J66: 0.6 | K66: 0.8 | L66: 0.3859
D67: Wet Pond | F67: 0.6 | H67: 0.44 | I67: 0.28 | J67: 0.68 | K67: 0.85 | L67: 0.4994
D68: Wet Pond | F68: 0.8 | H68: 0.48 | I68: 0.31 | J68: 0.74 | K68: 0.87 | L68: 0.5817
D69: Wet Pond | F69: 1 | H69: 0.53 | I69: 0.32 | J69: 0.77 | K69: 0.89 | L69: 0.6416
D70: Wet Pond | F70: 1.5 | H70: 0.58 | I70: 0.37 | J70: 0.83 | K70: 0.92 | L70: 0.7369
D71: Wet Pond | F71: 2 | H71: 0.63 | I71: 0.4 | J71: 0.86 | K71: 0.93 | L71: 0.792
D73: Infiltration Basin | E73: 0.17 | F73: 0 | G73: 0 | H73: 0 | I73: 0 | J73: 0 | K73: 0 | L73: 0
D74: Infiltration Basin | E74: 0.17 | F74: 0.1 | G74: 0.13 | H74: 0.35 | I74: 0.52 | J74: 0.64 | K74: 0.71 | L74: 0.2358
D75: Infiltration Basin | E75: 0.17 | F75: 0.2 | G75: 0.246 | H75: 0.52 | I75: 0.69 | J75: 0.8 | K75: 0.86 | L75: 0.3965
D76: Infiltration Basin | E76: 0.17 | F76: 0.4 | G76: 0.442 | H76: 0.72 | I76: 0.85 | J76: 0.93 | K76: 0.96 | L76: 0.6339
D77: Infiltration Basin | E77: 0.17 | F77: 0.6 | G77: 0.595 | H77: 0.82 | I77: 0.92 | J77: 0.98 | K77: 0.98 | L77: 0.7852
D78: Infiltration Basin | E78: 0.17 | F78: 0.8 | G78: 0.706 | H78: 0.88 | I78: 0.96 | J78: 0.99 | K78: 0.99 | L78: 0.8778
D79: Infiltration Basin | E79: 0.17 | F79: 1 | G79: 0.781 | H79: 0.92 | I79: 0.98 | J79: 1 | K79: 1 | L79: 0.9294
D80: Infiltration Basin | E80: 0.17 | F80: 1.5 | G80: 0.892 | H80: 0.97 | I80: 0.99 | J80: 1 | K80: 1 | L80: 0.981
D81: Infiltration Basin | E81: 0.17 | F81: 2 | G81: 0.939 | H81: 0.99 | I81: 1 | J81: 1 | K81: 1 | L81: 0.9945
D82: Infiltration Basin | E82: 0.27 | F82: 0 | G82: 0 | H82: 0 | I82: 0 | J82: 0 | K82: 0 | L82: 0
D83: Infiltration Basin | E83: 0.27 | F83: 0.1 | G83: 0.163 | H83: 0.37 | I83: 0.54 | J83: 0.65 | K83: 0.73 | L83: 0.2588
D84: Infiltration Basin | E84: 0.27 | F84: 0.2 | G84: 0.298 | H84: 0.54 | I84: 0.71 | J84: 0.81 | K84: 0.88 | L84: 0.434
D85: Infiltration Basin | E85: 0.27 | F85: 0.4 | G85: 0.51 | H85: 0.74 | I85: 0.87 | J85: 0.94 | K85: 0.97 | L85: 0.6771
D86: Infiltration Basin | E86: 0.27 | F86: 0.6 | G86: 0.66 | H86: 0.85 | I86: 0.93 | J86: 0.98 | K86: 0.99 | L86: 0.8248
D87: Infiltration Basin | E87: 0.27 | F87: 0.8 | G87: 0.76 | H87: 0.9 | I87: 0.97 | J87: 0.99 | K87: 1 | L87: 0.9086
D88: Infiltration Basin | E88: 0.27 | F88: 1 | G88: 0.824 | H88: 0.93 | I88: 0.98 | J88: 1 | K88: 1 | L88: 0.9516
D89: Infiltration Basin | E89: 0.27 | F89: 1.5 | G89: 0.915 | H89: 0.98 | I89: 0.99 | J89: 1 | K89: 1 | L89: 0.9886
D90: Infiltration Basin | E90: 0.27 | F90: 2 | G90: 0.952 | H90: 0.99 | I90: 1 | J90: 1 | K90: 1 | L90: 0.9972
D91: Infiltration Basin | E91: 0.52 | F91: 0 | G91: 0 | H91: 0 | I91: 0 | J91: 0 | K91: 0 | L91: 0
D92: Infiltration Basin | E92: 0.52 | F92: 0.1 | G92: 0.202 | H92: 0.38 | I92: 0.56 | J92: 0.65 | K92: 0.75 | L92: 0.2956
D93: Infiltration Basin | E93: 0.52 | F93: 0.2 | G93: 0.356 | H93: 0.56 | I93: 0.74 | J93: 0.83 | K93: 0.9 | L93: 0.4864
D94: Infiltration Basin | E94: 0.52 | F94: 0.4 | G94: 0.58 | H94: 0.77 | I94: 0.89 | J94: 0.95 | K94: 0.98 | L94: 0.7338
D95: Infiltration Basin | E95: 0.52 | F95: 0.6 | G95: 0.726 | H95: 0.87 | I95: 0.94 | J95: 0.99 | K95: 0.99 | L95: 0.8741
D96: Infiltration Basin | E96: 0.52 | F96: 0.8 | G96: 0.813 | H96: 0.92 | I96: 0.98 | J96: 0.99 | K96: 1 | L96: 0.9421
D97: Infiltration Basin | E97: 0.52 | F97: 1 | G97: 0.869 | H97: 0.95 | I97: 0.99 | J97: 1 | K97: 1 | L97: 0.9728
D98: Infiltration Basin | E98: 0.52 | F98: 1.5 | G98: 0.942 | H98: 0.98 | I98: 1 | J98: 1 | K98: 1 | L98: 0.9947
D99: Infiltration Basin | E99: 0.52 | F99: 2 | G99: 0.967 | H99: 0.99 | I99: 1 | J99: 1 | K99: 1 | L99: 0.9989
D100: Infiltration Basin | E100: 1.02 | F100: 0 | G100: 0 | H100: 0 | I100: 0 | J100: 0 | K100: 0 | L100: 0
D101: Infiltration Basin | E101: 1.02 | F101: 0.1 | G101: 0.245 | H101: 0.41 | I101: 0.59 | J101: 0.67 | K101: 0.78 | L101: 0.3399
D102: Infiltration Basin | E102: 1.02 | F102: 0.2 | G102: 0.42 | H102: 0.6 | I102: 0.77 | J102: 0.94 | K102: 0.92 | L102: 0.5479
D103: Infiltration Basin | E103: 1.02 | F103: 0.4 | G103: 0.656 | H103: 0.81 | I103: 0.92 | J103: 0.96 | K103: 0.99 | L103: 0.8
D104: Infiltration Basin | E104: 1.02 | F104: 0.6 | G104: 0.794 | H104: 0.9 | I104: 0.96 | J104: 0.99 | K104: 1 | L104: 0.923
D105: Infiltration Basin | E105: 1.02 | F105: 0.8 | G105: 0.868 | H105: 0.94 | I105: 0.98 | J105: 1 | K105: 1 | L105: 0.9712
D106: Infiltration Basin | E106: 1.02 | F106: 1 | G106: 0.913 | H106: 0.97 | I106: 1 | J106: 1 | K106: 1 | L106: 0.9877
D107: Infiltration Basin | E107: 1.02 | F107: 1.5 | G107: 0.962 | H107: 0.99 | I107: 1 | J107: 1 | K107: 1 | L107: 0.9982
D108: Infiltration Basin | E108: 1.02 | F108: 2 | G108: 0.981 | H108: 1 | I108: 1 | J108: 1 | K108: 1 | L108: 0.9998
D109: Infiltration Basin | E109: 2.41 | F109: 0 | G109: 0 | H109: 0 | I109: 0 | J109: 0 | K109: 0 | L109: 0
D110: Infiltration Basin | E110: 2.41 | F110: 0.1 | G110: 0.328 | H110: 0.46 | I110: 0.64 | J110: 0.7 | K110: 0.82 | L110: 0.4168
D111: Infiltration Basin | E111: 2.41 | F111: 0.2 | G111: 0.538 | H111: 0.67 | I111: 0.82 | J111: 0.88 | K111: 0.95 | L111: 0.6564
D112: Infiltration Basin | E112: 2.41 | F112: 0.4 | G112: 0.778 | H112: 0.87 | I112: 0.95 | J112: 0.98 | K112: 1 | L112: 0.9006
D113: Infiltration Basin | E113: 2.41 | F113: 0.6 | G113: 0.884 | H113: 0.94 | I113: 0.98 | J113: 1 | K113: 1 | L113: 0.9759
D114: Infiltration Basin | E114: 2.41 | F114: 0.8 | G114: 0.934 | H114: 0.97 | I114: 0.99 | J114: 1 | K114: 1 | L114: 0.9934
D115: Infiltration Basin | E115: 2.41 | F115: 1 | G115: 0.96 | H115: 0.98 | I115: 1 | J115: 1 | K115: 1 | L115: 0.9982
D116: Infiltration Basin | E116: 2.41 | F116: 1.5 | G116: 0.988 | H116: 1 | I116: 1 | J116: 1 | K116: 1 | L116: 1
D117: Infiltration Basin | E117: 2.41 | F117: 2 | G117: 0.998 | H117: 1 | I117: 1 | J117: 1 | K117: 1 | L117: 1
D118: Infiltration Basin | E118: 8.27 | F118: 0 | G118: 0 | H118: 0 | I118: 0 | J118: 0 | K118: 0 | L118: 0
D119: Infiltration Basin | E119: 8.27 | F119: 0.1 | G119: 0.546 | H119: 0.59 | I119: 0.75 | J119: 0.79 | K119: 0.91 | L119: 0.6024
D120: Infiltration Basin | E120: 8.27 | F120: 0.2 | G120: 0.772 | H120: 0.81 | I120: 0.92 | J120: 0.95 | K120: 0.99 | L120: 0.8709
D121: Infiltration Basin | E121: 8.27 | F121: 0.4 | G121: 0.934 | H121: 0.96 | I121: 0.99 | J121: 1 | K121: 1 | L121: 0.992
D122: Infiltration Basin | E122: 8.27 | F122: 0.6 | G122: 0.975 | H122: 0.99 | I122: 1 | J122: 1 | K122: 1 | L122: 0.9994
D123: Infiltration Basin | E123: 8.27 | F123: 0.8 | G123: 0.99 | H123: 1 | I123: 1 | J123: 1 | K123: 1 | L123: 1
D124: Infiltration Basin | E124: 8.27 | F124: 1 | G124: 0.996 | H124: 1 | I124: 1 | J124: 1 | K124: 1 | L124: 1
D125: Infiltration Basin | E125: 8.27 | F125: 1.5 | G125: 1 | H125: 1 | I125: 1 | J125: 1 | K125: 1 | L125: 1
D126: Infiltration Basin | E126: 8.27 | F126: 2 | G126: 1 | H126: 1 | I126: 1 | J126: 1 | K126: 1 | L126: 1
D128: Infiltration Trench | E128: 0.17 | F128: 0 | G128: 0 | H128: 0 | I128: 0 | J128: 0 | K128: 0 | L128: 0
D129: Infiltration Trench | E129: 0.17 | F129: 0.1 | G129: 0.147 | H129: 0.18 | I129: 0.56 | J129: 0.32 | K129: 0.51 | L129: 0.2159
D130: Infiltration Trench | E130: 0.17 | F130: 0.2 | G130: 0.276 | H130: 0.33 | I130: 0.72 | J130: 0.56 | K130: 0.77 | L130: 0.3463
D131: Infiltration Trench | E131: 0.17 | F131: 0.4 | G131: 0.486 | H131: 0.57 | I131: 0.87 | J131: 0.84 | K131: 0.94 | L131: 0.5368
D132: Infiltration Trench | E132: 0.17 | F132: 0.6 | G132: 0.641 | H132: 0.73 | I132: 0.93 | J132: 0.95 | K132: 0.98 | L132: 0.6809
D133: Infiltration Trench | E133: 0.17 | F133: 0.8 | G133: 0.749 | H133: 0.83 | I133: 0.96 | J133: 0.98 | K133: 0.99 | L133: 0.7804
D134: Infiltration Trench | E134: 0.17 | F134: 1 | G134: 0.82 | H134: 0.9 | I134: 0.98 | J134: 0.99 | K134: 0.99 | L134: 0.8491
D135: Infiltration Trench | E135: 0.17 | F135: 1.5 | G135: 0.916 | H135: 0.97 | I135: 0.99 | J135: 1 | K135: 1 | L135: 0.9403
D136: Infiltration Trench | E136: 0.17 | F136: 2 | G136: 0.954 | H136: 0.99 | I136: 1 | J136: 1 | K136: 1 | L136: 0.9755
D137: Infiltration Trench | E137: 0.27 | F137: 0 | G137: 0 | H137: 0 | I137: 0 | J137: 0 | K137: 0 | L137: 0
D138: Infiltration Trench | E138: 0.27 | F138: 0.1 | G138: 0.178 | H138: 0.2 | I138: 0.57 | J138: 0.36 | K138: 0.57 | L138: 0.224
D139: Infiltration Trench | E139: 0.27 | F139: 0.2 | G139: 0.325 | H139: 0.37 | I139: 0.74 | J139: 0.51 | K139: 0.84 | L139: 0.3648
D140: Infiltration Trench | E140: 0.27 | F140: 0.4 | G140: 0.55 | H140: 0.63 | I140: 0.88 | J140: 0.88 | K140: 0.97 | L140: 0.5634
D141: Infiltration Trench | E141: 0.27 | F141: 0.6 | G141: 0.7 | H141: 0.78 | I141: 0.94 | J141: 0.97 | K141: 0.99 | L141: 0.7095
D142: Infiltration Trench | E142: 0.27 | F142: 0.8 | G142: 0.793 | H142: 0.86 | I142: 0.97 | J142: 0.99 | K142: 0.99 | L142: 0.8069
D143: Infiltration Trench | E143: 0.27 | F143: 1 | G143: 0.852 | H143: 0.92 | I143: 0.98 | J143: 1 | K143: 1 | L143: 0.8718
D144: Infiltration Trench | E144: 0.27 | F144: 1.5 | G144: 0.933 | H144: 0.97 | I144: 0.99 | J144: 1 | K144: 1 | L144: 0.9542
D145: Infiltration Trench | E145: 0.27 | F145: 2 | G145: 0.963 | H145: 0.99 | I145: 1 | J145: 1 | K145: 1 | L145: 0.9822
D146: Infiltration Trench | E146: 0.52 | F146: 0 | G146: 0 | H146: 0 | I146: 0 | J146: 0 | K146: 0 | L146: 0
D147: Infiltration Trench | E147: 0.52 | F147: 0.1 | G147: 0.22 | H147: 0.23 | I147: 0.59 | J147: 0.4 | K147: 0.65 | L147: 0.2442
D148: Infiltration Trench | E148: 0.52 | F148: 0.2 | G148: 0.385 | H148: 0.42 | I148: 0.76 | J148: 0.66 | K148: 0.9 | L148: 0.3988
D149: Infiltration Trench | E149: 0.52 | F149: 0.4 | G149: 0.618 | H149: 0.68 | I149: 0.9 | J149: 0.91 | K149: 0.98 | L149: 0.6069
D150: Infiltration Trench | E150: 0.52 | F150: 0.6 | G150: 0.757 | H150: 0.82 | I150: 0.95 | J150: 0.98 | K150: 0.99 | L150: 0.7515
D151: Infiltration Trench | E151: 0.52 | F151: 0.8 | G151: 0.837 | H151: 0.89 | I151: 0.98 | J151: 0.99 | K151: 1 | L151: 0.8428
D152: Infiltration Trench | E152: 0.52 | F152: 1 | G152: 0.888 | H152: 0.94 | I152: 0.99 | J152: 1 | K152: 1 | L152: 0.903
D153: Infiltration Trench | E153: 0.52 | F153: 1.5 | G153: 0.95 | H153: 0.98 | I153: 1 | J153: 1 | K153: 1 | L153: 0.9701
D154: Infiltration Trench | E154: 0.52 | F154: 2 | G154: 0.972 | H154: 0.99 | I154: 1 | J154: 1 | K154: 1 | L154: 0.9892
D155: Infiltration Trench | E155: 1.02 | F155: 0 | G155: 0 | H155: 0 | I155: 0 | J155: 0 | K155: 0 | L155: 0
D156: Infiltration Trench | E156: 1.02 | F156: 0.1 | G156: 0.263 | H156: 0.27 | I156: 0.61 | J156: 0.44 | K156: 0.72 | L156: 0.2749
D157: Infiltration Trench | E157: 1.02 | F157: 0.2 | G157: 0.446 | H157: 0.47 | I157: 0.78 | J157: 0.7 | K157: 0.94 | L157: 0.4454
D158: Infiltration Trench | E158: 1.02 | F158: 0.4 | G158: 0.682 | H158: 0.73 | I158: 0.92 | J158: 0.93 | K158: 0.99 | L158: 0.665
D159: Infiltration Trench | E159: 1.02 | F159: 0.6 | G159: 0.81 | H159: 0.86 | I159: 0.97 | J159: 0.99 | K159: 1 | L159: 0.8039
D160: Infiltration Trench | E160: 1.02 | F160: 0.8 | G160: 0.88 | H160: 0.92 | I160: 0.98 | J160: 1 | K160: 1 | L160: 0.8885
D161: Infiltration Trench | E161: 1.02 | F161: 1 | G161: 0.921 | H161: 0.96 | I161: 0.99 | J161: 1 | K161: 1 | L161: 0.9377
D162: Infiltration Trench | E162: 1.02 | F162: 1.5 | G162: 0.965 | H162: 0.99 | I162: 1 | J162: 1 | K162: 1 | L162: 0.9837
D163: Infiltration Trench | E163: 1.02 | F163: 2 | G163: 0.983 | H163: 1 | I163: 1 | J163: 1 | K163: 1 | L163: 0.9946
D164: Infiltration Trench | E164: 2.41 | F164: 0 | G164: 0 | H164: 0 | I164: 0 | J164: 0 | K164: 0 | L164: 0
D165: Infiltration Trench | E165: 2.41 | F165: 0.1 | G165: 0.34 | H165: 0.33 | I165: 0.65 | J165: 0.5 | K165: 0.81 | L165: 0.3356
D166: Infiltration Trench | E166: 2.41 | F166: 0.2 | G166: 0.547 | H166: 0.55 | I166: 0.83 | J166: 0.77 | K166: 0.98 | L166: 0.5355
D167: Infiltration Trench | E167: 2.41 | F167: 0.4 | G167: 0.783 | H167: 0.81 | I167: 0.95 | J167: 0.97 | K167: 1 | L167: 0.7644
D168: Infiltration Trench | E168: 2.41 | F168: 0.6 | G168: 0.884 | H168: 0.91 | I168: 0.98 | J168: 1 | K168: 1 | L168: 0.8883
D169: Infiltration Trench | E169: 2.41 | F169: 0.8 | G169: 0.934 | H169: 0.96 | I169: 0.99 | J169: 1 | K169: 1 | L169: 0.949
D170: Infiltration Trench | E170: 2.41 | F170: 1 | G170: 0.96 | H170: 0.98 | I170: 1 | J170: 1 | K170: 1 | L170: 0.9759
D171: Infiltration Trench | E171: 2.41 | F171: 1.5 | G171: 0.988 | H171: 1 | I171: 1 | J171: 1 | K171: 1 | L171: 0.995
D172: Infiltration Trench | E172: 2.41 | F172: 2 | G172: 0.998 | H172: 1 | I172: 1 | J172: 1 | K172: 1 | L172: 0.9983
D173: Infiltration Trench | E173: 8.27 | F173: 0 | G173: 0 | H173: 0 | I173: 0 | J173: 0 | K173: 0 | L173: 0
A174: corrected from earlier versions which had them switched (from EPA) | D174: Infiltration Trench | E174: 8.27 | F174: 0.1 | G174: 0.536 | H174: 0.5 | I174: 0.76 | J174: 0.92 | K174: 0.93 | L174: 0.5019
D175: Infiltration Trench | E175: 8.27 | F175: 0.2 | G175: 0.761 | H175: 0.75 | I175: 0.92 | J175: 0.98 | K175: 1 | L175: 0.7476
D176: Infiltration Trench | E176: 8.27 | F176: 0.4 | G176: 0.926 | H176: 0.94 | I176: 0.98 | J176: 1 | K176: 1 | L176: 0.9367
D177: Infiltration Trench | E177: 8.27 | F177: 0.6 | G177: 0.972 | H177: 0.98 | I177: 1 | J177: 1 | K177: 1 | L177: 0.9837
D178: Infiltration Trench | E178: 8.27 | F178: 0.8 | G178: 0.989 | H178: 0.99 | I178: 1 | J178: 1 | K178: 1 | L178: 0.9944
D179: Infiltration Trench | E179: 8.27 | F179: 1 | G179: 0.995 | H179: 1 | I179: 1 | J179: 1 | K179: 1 | L179: 0.9974
D180: Infiltration Trench | E180: 8.27 | F180: 1.5 | G180: 1 | H180: 1 | I180: 1 | J180: 1 | K180: 1 | L180: 0.9996
D181: Infiltration Trench | E181: 8.27 | F181: 2 | G181: 1 | H181: 1 | I181: 1 | J181: 1 | K181: 1 | L181: 0.9999
B183: HSG to numeric | E183: HSG | F183: IC/PC
B184: =VLOOKUP(E184,table_HSG_conv,2,FALSE) -> 1 | D184: IC Disconnection | E184: A | F184: 0.014 | G184: 1 | H184: 1 | I184: 1 | J184: 1 | K184: 1 | L184: 1
B185: 1 | D185: IC Disconnection | E185: A | F185: 0.02 | G185: 1 | H185: 1 | I185: 1 | J185: 1 | K185: 1 | L185: 1
B186: 1 | D186: IC Disconnection | E186: A | F186: 0.033 | G186: 0.99 | H186: 0.99 | I186: 0.99 | J186: 0.99 | K186: 0.99 | L186: 0.99
B187: 1 | D187: IC Disconnection | E187: A | F187: 0.1 | G187: 0.99 | H187: 0.99 | I187: 0.99 | J187: 0.99 | K187: 0.99 | L187: 0.99
B188: 1 | D188: IC Disconnection | E188: A | F188: 0.25 | G188: 0.95 | H188: 0.95 | I188: 0.95 | J188: 0.95 | K188: 0.95 | L188: 0.95
B189: 1 | D189: IC Disconnection | E189: A | F189: 0.5 | G189: 0.93 | H189: 0.93 | I189: 0.93 | J189: 0.93 | K189: 0.93 | L189: 0.93
B190: 1 | D190: IC Disconnection | E190: A | F190: 1 | G190: 0.88 | H190: 0.88 | I190: 0.88 | J190: 0.88 | K190: 0.88 | L190: 0.88
B191: 1 | D191: IC Disconnection | E191: A | F191: 2 | G191: 0.78 | H191: 0.78 | I191: 0.78 | J191: 0.78 | K191: 0.78 | L191: 0.78
B192: 1 | D192: IC Disconnection | E192: A | F192: 4 | G192: 0.63 | H192: 0.63 | I192: 0.63 | J192: 0.63 | K192: 0.63 | L192: 0.63
B193: 1 | D193: IC Disconnection | E193: A | F193: 6 | G193: 0.52 | H193: 0.52 | I193: 0.52 | J193: 0.52 | K193: 0.52 | L193: 0.52
B194: 1 | D194: IC Disconnection | E194: A | F194: 8 | G194: 0.45 | H194: 0.45 | I194: 0.45 | J194: 0.45 | K194: 0.45 | L194: 0.45
B195: 2 | D195: IC Disconnection | E195: B | F195: 0.014 | G195: 0.99 | H195: 0.99 | I195: 0.99 | J195: 0.99 | K195: 0.99 | L195: 0.99
B196: 2 | D196: IC Disconnection | E196: B | F196: 0.02 | G196: 0.9 | H196: 0.9 | I196: 0.9 | J196: 0.9 | K196: 0.9 | L196: 0.9
B197: 2 | D197: IC Disconnection | E197: B | F197: 0.033 | G197: 0.89 | H197: 0.89 | I197: 0.89 | J197: 0.89 | K197: 0.89 | L197: 0.89
B198: 2 | D198: IC Disconnection | E198: B | F198: 0.1 | G198: 0.88 | H198: 0.88 | I198: 0.88 | J198: 0.88 | K198: 0.88 | L198: 0.88
B199: 2 | D199: IC Disconnection | E199: B | F199: 0.25 | G199: 0.78 | H199: 0.78 | I199: 0.78 | J199: 0.78 | K199: 0.78 | L199: 0.78
B200: 2 | D200: IC Disconnection | E200: B | F200: 0.5 | G200: 0.74 | H200: 0.74 | I200: 0.74 | J200: 0.74 | K200: 0.74 | L200: 0.74
B201: 2 | D201: IC Disconnection | E201: B | F201: 1 | G201: 0.66 | H201: 0.66 | I201: 0.66 | J201: 0.66 | K201: 0.66 | L201: 0.66
B202: 2 | D202: IC Disconnection | E202: B | F202: 2 | G202: 0.54 | H202: 0.54 | I202: 0.54 | J202: 0.54 | K202: 0.54 | L202: 0.54
B203: 2 | D203: IC Disconnection | E203: B | F203: 4 | G203: 0.39 | H203: 0.39 | I203: 0.39 | J203: 0.39 | K203: 0.39 | L203: 0.39
... 198 more rows

Sheet Calcs (hidden_locked) (hidden)
A1: calc notes | C1: Notes | D1: Parameter | E1: Abbrev. | F1: Units | G1: SCM 1 | H1: SCM 2 | I1: SCM 3 | J1: SCM 4 | K1: SCM 5
B2: Input: Site & BMP | C2: Site | D2: ID | G2: =IF(ISBLANK(Input_Design_Output!F2),"",Input_Design_Output!F2) -> Example Bioretention | H2: =IF(ISBLANK(Input_Design_Output!G2),"",Input_Design_Output!G2) ->  | I2: =IF(ISBLANK(Input_Design_Output!H2),"",Input_Design_Output!H2) ->  | J2: =IF(ISBLANK(Input_Design_Output!I2),"",Input_Design_Output!I2) ->  | K2: =IF(ISBLANK(Input_Design_Output!J2),"",Input_Design_Output!J2) -> 
D3: Date | G3: =IF(ISBLANK(Input_Design_Output!F3),"",Input_Design_Output!F3) -> 44378 | H3: =IF(ISBLANK(Input_Design_Output!G3),"",Input_Design_Output!G3) ->  | I3: =IF(ISBLANK(Input_Design_Output!H3),"",Input_Design_Output!H3) ->  | J3: =IF(ISBLANK(Input_Design_Output!I3),"",Input_Design_Output!I3) ->  | K3: =IF(ISBLANK(Input_Design_Output!J3),"",Input_Design_Output!J3) -> 
D4: Location | G4: =IF(ISBLANK(Input_Design_Output!F4),"",Input_Design_Output!F4) ->  | H4: =IF(ISBLANK(Input_Design_Output!G4),"",Input_Design_Output!G4) ->  | I4: =IF(ISBLANK(Input_Design_Output!H4),"",Input_Design_Output!H4) ->  | J4: =IF(ISBLANK(Input_Design_Output!I4),"",Input_Design_Output!I4) ->  | K4: =IF(ISBLANK(Input_Design_Output!J4),"",Input_Design_Output!J4) -> 
D5: Description/Notes | G5: =IF(ISBLANK(Input_Design_Output!F5),"",Input_Design_Output!F5) ->  | H5: =IF(ISBLANK(Input_Design_Output!G5),"",Input_Design_Output!G5) ->  | I5: =IF(ISBLANK(Input_Design_Output!H5),"",Input_Design_Output!H5) ->  | J5: =IF(ISBLANK(Input_Design_Output!I5),"",Input_Design_Output!I5) ->  | K5: =IF(ISBLANK(Input_Design_Output!J5),"",Input_Design_Output!J5) -> 
D6: Costs Multiplier (Recommended 1-3) | G6: =IF(ISBLANK(Input_Design_Output!F6),"",Input_Design_Output!F6) -> 2 | H6: =IF(ISBLANK(Input_Design_Output!G6),"",Input_Design_Output!G6) ->  | I6: =IF(ISBLANK(Input_Design_Output!H6),"",Input_Design_Output!H6) ->  | J6: =IF(ISBLANK(Input_Design_Output!I6),"",Input_Design_Output!I6) ->  | K6: =IF(ISBLANK(Input_Design_Output!J6),"",Input_Design_Output!J6) -> 
D7: Location (for FIB) | G7: =IF(ISBLANK(Input_Design_Output!F7),"",Input_Design_Output!F7) -> Inland | H7: =IF(ISBLANK(Input_Design_Output!G7),"",Input_Design_Output!G7) ->  | I7: =IF(ISBLANK(Input_Design_Output!H7),"",Input_Design_Output!H7) ->  | J7: =IF(ISBLANK(Input_Design_Output!I7),"",Input_Design_Output!I7) ->  | K7: =IF(ISBLANK(Input_Design_Output!J7),"",Input_Design_Output!J7) -> 
C8: Watershed | D8: Impervious Drainage Area | E8: IA | F8: ac | G8: =IF(ISBLANK(Input_Design_Output!F8),"",Input_Design_Output!F8) -> 0.84 | H8: =IF(ISBLANK(Input_Design_Output!G8),"",Input_Design_Output!G8) ->  | I8: =IF(ISBLANK(Input_Design_Output!H8),"",Input_Design_Output!H8) ->  | J8: =IF(ISBLANK(Input_Design_Output!I8),"",Input_Design_Output!I8) ->  | K8: =IF(ISBLANK(Input_Design_Output!J8),"",Input_Design_Output!J8) -> 
D9: Land Use | E9: LU | F9: - | G9: =IF(ISBLANK(Input_Design_Output!F9),"",Input_Design_Output!F9) -> Medium-Density Residential | H9: =IF(ISBLANK(Input_Design_Output!G9),"",Input_Design_Output!G9) ->  | I9: =IF(ISBLANK(Input_Design_Output!H9),"",Input_Design_Output!H9) ->  | J9: =IF(ISBLANK(Input_Design_Output!I9),"",Input_Design_Output!I9) ->  | K9: =IF(ISBLANK(Input_Design_Output!J9),"",Input_Design_Output!J9) -> 
C10: SCM | D10: Selected SCM | E10: - | F10: - | G10: =IF(ISBLANK(Input_Design_Output!F10),"",Input_Design_Output!F10) -> Bioretention/Rain Garden (no underdrains) | H10: =IF(ISBLANK(Input_Design_Output!G10),"",Input_Design_Output!G10) ->  | I10: =IF(ISBLANK(Input_Design_Output!H10),"",Input_Design_Output!H10) ->  | J10: =IF(ISBLANK(Input_Design_Output!I10),"",Input_Design_Output!I10) ->  | K10: =IF(ISBLANK(Input_Design_Output!J10),"",Input_Design_Output!J10) -> 
A11: lookup curve from table | D11: Applicable Performance Curve (See Crosswalk) | E11: - | F11: - | G11: =IFERROR(VLOOKUP(G$10,table_SCM_appcurve_costs_OM,2,FALSE),"") -> Infiltration Basin
D12: Infiltration Rate (0.17-8.27) | E12: IR | F12: in/hr | G12: =IF(ISBLANK(Input_Design_Output!F12),"",Input_Design_Output!F12) -> 0.52 | H12: =IF(ISBLANK(Input_Design_Output!G12),"",Input_Design_Output!G12) ->  | I12: =IF(ISBLANK(Input_Design_Output!H12),"",Input_Design_Output!H12) ->  | J12: =IF(ISBLANK(Input_Design_Output!I12),"",Input_Design_Output!I12) ->  | K12: =IF(ISBLANK(Input_Design_Output!J12),"",Input_Design_Output!J12) -> 
D13: Known DSV (to skip design section below, or blank) | E13: DSV | F13: cf | G13: =IF(ISBLANK(Input_Design_Output!F13),0,Input_Design_Output!F13) -> 0 | H13: =IF(ISBLANK(Input_Design_Output!G13),0,Input_Design_Output!G13) -> 0 | I13: =IF(ISBLANK(Input_Design_Output!H13),0,Input_Design_Output!H13) -> 0 | J13: =IF(ISBLANK(Input_Design_Output!I13),0,Input_Design_Output!I13) -> 0 | K13: =IF(ISBLANK(Input_Design_Output!J13),0,Input_Design_Output!J13) -> 0
B15: Input: BMP Design | C15: SCM Design Specifications: DSV is calculated from orange Input cells only. Formulas, Goal Seek, and Solver may be used in any cell. All parameters pertain to the BMP system, not native materials. | D15: Width at top @ Dmax | E15: WDmax | F15: ft | G15: =IF(ISBLANK(Input_Design_Output!F15),"",Input_Design_Output!F15) ->  | H15: =IF(ISBLANK(Input_Design_Output!G15),"",Input_Design_Output!G15) ->  | I15: =IF(ISBLANK(Input_Design_Output!H15),"",Input_Design_Output!H15) ->  | J15: =IF(ISBLANK(Input_Design_Output!I15),"",Input_Design_Output!I15) ->  | K15: =IF(ISBLANK(Input_Design_Output!J15),"",Input_Design_Output!J15) -> 
D16: Width at bed | E16: Wbottom | F16: ft | G16: =IF(ISBLANK(Input_Design_Output!F16),"",Input_Design_Output!F16) ->  | H16: =IF(ISBLANK(Input_Design_Output!G16),"",Input_Design_Output!G16) ->  | I16: =IF(ISBLANK(Input_Design_Output!H16),"",Input_Design_Output!H16) ->  | J16: =IF(ISBLANK(Input_Design_Output!I16),"",Input_Design_Output!I16) ->  | K16: =IF(ISBLANK(Input_Design_Output!J16),"",Input_Design_Output!J16) -> 
D17: Area of pretreatment | E17: Apretreatment | F17: sf | G17: =IF(ISBLANK(Input_Design_Output!F17),"",Input_Design_Output!F17) ->  | H17: =IF(ISBLANK(Input_Design_Output!G17),"",Input_Design_Output!G17) ->  | I17: =IF(ISBLANK(Input_Design_Output!H17),"",Input_Design_Output!H17) ->  | J17: =IF(ISBLANK(Input_Design_Output!I17),"",Input_Design_Output!I17) ->  | K17: =IF(ISBLANK(Input_Design_Output!J17),"",Input_Design_Output!J17) -> 
D18: Depth of pretreatment | E18: Dpretreatment | F18: ft | G18: =IF(ISBLANK(Input_Design_Output!F18),"",Input_Design_Output!F18) ->  | H18: =IF(ISBLANK(Input_Design_Output!G18),"",Input_Design_Output!G18) ->  | I18: =IF(ISBLANK(Input_Design_Output!H18),"",Input_Design_Output!H18) ->  | J18: =IF(ISBLANK(Input_Design_Output!I18),"",Input_Design_Output!I18) ->  | K18: =IF(ISBLANK(Input_Design_Output!J18),"",Input_Design_Output!J18) -> 
D19: Depth of filter course | E19: DFC | F19: ft | G19: =IF(ISBLANK(Input_Design_Output!F19),"",Input_Design_Output!F19) ->  | H19: =IF(ISBLANK(Input_Design_Output!G19),"",Input_Design_Output!G19) ->  | I19: =IF(ISBLANK(Input_Design_Output!H19),"",Input_Design_Output!H19) ->  | J19: =IF(ISBLANK(Input_Design_Output!I19),"",Input_Design_Output!I19) ->  | K19: =IF(ISBLANK(Input_Design_Output!J19),"",Input_Design_Output!J19) -> 
D20: Area of pond | E20: Apond | F20: sf | G20: =IF(ISBLANK(Input_Design_Output!F20),"",Input_Design_Output!F20) -> 800 | H20: =IF(ISBLANK(Input_Design_Output!G20),"",Input_Design_Output!G20) ->  | I20: =IF(ISBLANK(Input_Design_Output!H20),"",Input_Design_Output!H20) ->  | J20: =IF(ISBLANK(Input_Design_Output!I20),"",Input_Design_Output!I20) ->  | K20: =IF(ISBLANK(Input_Design_Output!J20),"",Input_Design_Output!J20) -> 
D21: Depth of ponding | E21: Dponding | F21: ft | G21: =IF(ISBLANK(Input_Design_Output!F21),"",Input_Design_Output!F21) -> 1 | H21: =IF(ISBLANK(Input_Design_Output!G21),"",Input_Design_Output!G21) ->  | I21: =IF(ISBLANK(Input_Design_Output!H21),"",Input_Design_Output!H21) ->  | J21: =IF(ISBLANK(Input_Design_Output!I21),"",Input_Design_Output!I21) ->  | K21: =IF(ISBLANK(Input_Design_Output!J21),"",Input_Design_Output!J21) -> 
D22: Area of media | E22: Asoil | F22: sf | G22: =IF(ISBLANK(Input_Design_Output!F22),"",Input_Design_Output!F22) -> 800 | H22: =IF(ISBLANK(Input_Design_Output!G22),"",Input_Design_Output!G22) ->  | I22: =IF(ISBLANK(Input_Design_Output!H22),"",Input_Design_Output!H22) ->  | J22: =IF(ISBLANK(Input_Design_Output!I22),"",Input_Design_Output!I22) ->  | K22: =IF(ISBLANK(Input_Design_Output!J22),"",Input_Design_Output!J22) -> 
D23: Depth of media | E23: Dsoil | F23: ft | G23: =IF(ISBLANK(Input_Design_Output!F23),"",Input_Design_Output!F23) -> 3 | H23: =IF(ISBLANK(Input_Design_Output!G23),"",Input_Design_Output!G23) ->  | I23: =IF(ISBLANK(Input_Design_Output!H23),"",Input_Design_Output!H23) ->  | J23: =IF(ISBLANK(Input_Design_Output!I23),"",Input_Design_Output!I23) ->  | K23: =IF(ISBLANK(Input_Design_Output!J23),"",Input_Design_Output!J23) -> 
D24: Porosity of media (typical 0.2) | E24: ηsoil | F24: - | G24: =IF(ISBLANK(Input_Design_Output!F24),"",Input_Design_Output!F24) -> 0.2 | H24: =IF(ISBLANK(Input_Design_Output!G24),"",Input_Design_Output!G24) ->  | I24: =IF(ISBLANK(Input_Design_Output!H24),"",Input_Design_Output!H24) ->  | J24: =IF(ISBLANK(Input_Design_Output!I24),"",Input_Design_Output!I24) ->  | K24: =IF(ISBLANK(Input_Design_Output!J24),"",Input_Design_Output!J24) -> 
D25: Area of ISR | E25: AISR | F25: sf | G25: =IF(ISBLANK(Input_Design_Output!F25),"",Input_Design_Output!F25) ->  | H25: =IF(ISBLANK(Input_Design_Output!G25),"",Input_Design_Output!G25) ->  | I25: =IF(ISBLANK(Input_Design_Output!H25),"",Input_Design_Output!H25) ->  | J25: =IF(ISBLANK(Input_Design_Output!I25),"",Input_Design_Output!I25) ->  | K25: =IF(ISBLANK(Input_Design_Output!J25),"",Input_Design_Output!J25) -> 
D26: Depth of gravel/stone | E26: Dgravel | F26: ft | G26: =IF(ISBLANK(Input_Design_Output!F26),"",Input_Design_Output!F26) ->  | H26: =IF(ISBLANK(Input_Design_Output!G26),"",Input_Design_Output!G26) ->  | I26: =IF(ISBLANK(Input_Design_Output!H26),"",Input_Design_Output!H26) ->  | J26: =IF(ISBLANK(Input_Design_Output!I26),"",Input_Design_Output!I26) ->  | K26: =IF(ISBLANK(Input_Design_Output!J26),"",Input_Design_Output!J26) -> 
D27: Porosity of gravel/stone (typical 0.4) | E27: ηgravel | F27: - | G27: =IF(ISBLANK(Input_Design_Output!F27),"",Input_Design_Output!F27) ->  | H27: =IF(ISBLANK(Input_Design_Output!G27),"",Input_Design_Output!G27) ->  | I27: =IF(ISBLANK(Input_Design_Output!H27),"",Input_Design_Output!H27) ->  | J27: =IF(ISBLANK(Input_Design_Output!I27),"",Input_Design_Output!I27) ->  | K27: =IF(ISBLANK(Input_Design_Output!J27),"",Input_Design_Output!J27) -> 
D28: Area of sand | E28: Asand | F28: sf | G28: =IF(ISBLANK(Input_Design_Output!F28),"",Input_Design_Output!F28) ->  | H28: =IF(ISBLANK(Input_Design_Output!G28),"",Input_Design_Output!G28) ->  | I28: =IF(ISBLANK(Input_Design_Output!H28),"",Input_Design_Output!H28) ->  | J28: =IF(ISBLANK(Input_Design_Output!I28),"",Input_Design_Output!I28) ->  | K28: =IF(ISBLANK(Input_Design_Output!J28),"",Input_Design_Output!J28) -> 
D29: Depth of sand | E29: Dsand | F29: ft | G29: =IF(ISBLANK(Input_Design_Output!F29),"",Input_Design_Output!F29) ->  | H29: =IF(ISBLANK(Input_Design_Output!G29),"",Input_Design_Output!G29) ->  | I29: =IF(ISBLANK(Input_Design_Output!H29),"",Input_Design_Output!H29) ->  | J29: =IF(ISBLANK(Input_Design_Output!I29),"",Input_Design_Output!I29) ->  | K29: =IF(ISBLANK(Input_Design_Output!J29),"",Input_Design_Output!J29) -> 
D30: Porosity of sand (typical 0.3) | E30: ηsand | F30: - | G30: =IF(ISBLANK(Input_Design_Output!F30),"",Input_Design_Output!F30) ->  | H30: =IF(ISBLANK(Input_Design_Output!G30),"",Input_Design_Output!G30) ->  | I30: =IF(ISBLANK(Input_Design_Output!H30),"",Input_Design_Output!H30) ->  | J30: =IF(ISBLANK(Input_Design_Output!I30),"",Input_Design_Output!I30) ->  | K30: =IF(ISBLANK(Input_Design_Output!J30),"",Input_Design_Output!J30) -> 
D31: Area cross-section of galley/chambers/pipes (total) | E31: Ax-section galley | F31: sf | G31: =IF(ISBLANK(Input_Design_Output!F31),"",Input_Design_Output!F31) ->  | H31: =IF(ISBLANK(Input_Design_Output!G31),"",Input_Design_Output!G31) ->  | I31: =IF(ISBLANK(Input_Design_Output!H31),"",Input_Design_Output!H31) ->  | J31: =IF(ISBLANK(Input_Design_Output!I31),"",Input_Design_Output!I31) ->  | K31: =IF(ISBLANK(Input_Design_Output!J31),"",Input_Design_Output!J31) -> 
D32: Width | E32: W | F32: ft | G32: =IF(ISBLANK(Input_Design_Output!F32),"",Input_Design_Output!F32) -> 40 | H32: =IF(ISBLANK(Input_Design_Output!G32),"",Input_Design_Output!G32) ->  | I32: =IF(ISBLANK(Input_Design_Output!H32),"",Input_Design_Output!H32) ->  | J32: =IF(ISBLANK(Input_Design_Output!I32),"",Input_Design_Output!I32) ->  | K32: =IF(ISBLANK(Input_Design_Output!J32),"",Input_Design_Output!J32) -> 
D33: Length | E33: L | F33: ft | G33: =IF(ISBLANK(Input_Design_Output!F33),"",Input_Design_Output!F33) -> 20 | H33: =IF(ISBLANK(Input_Design_Output!G33),"",Input_Design_Output!G33) ->  | I33: =IF(ISBLANK(Input_Design_Output!H33),"",Input_Design_Output!H33) ->  | J33: =IF(ISBLANK(Input_Design_Output!I33),"",Input_Design_Output!I33) ->  | K33: =IF(ISBLANK(Input_Design_Output!J33),"",Input_Design_Output!J33) -> 
D34: Pervious area | E34: Aperv | F34: ac | G34: =IF(ISBLANK(Input_Design_Output!F34),"",Input_Design_Output!F34) ->  | H34: =IF(ISBLANK(Input_Design_Output!G34),"",Input_Design_Output!G34) ->  | I34: =IF(ISBLANK(Input_Design_Output!H34),"",Input_Design_Output!H34) ->  | J34: =IF(ISBLANK(Input_Design_Output!I34),"",Input_Design_Output!I34) ->  | K34: =IF(ISBLANK(Input_Design_Output!J34),"",Input_Design_Output!J34) -> 
D35: Pervious Hydrologic Soil Group | E35: HSGperv | F35: - | G35: =IF(ISBLANK(Input_Design_Output!F35),"",Input_Design_Output!F35) ->  | H35: =IF(ISBLANK(Input_Design_Output!G35),"",Input_Design_Output!G35) ->  | I35: =IF(ISBLANK(Input_Design_Output!H35),"",Input_Design_Output!H35) ->  | J35: =IF(ISBLANK(Input_Design_Output!I35),"",Input_Design_Output!I35) ->  | K35: =IF(ISBLANK(Input_Design_Output!J35),"",Input_Design_Output!J35) -> 
A38: ignore if IC disc or PPw/liner, then use given DSV, or max of calculated one | D38: Design Storage Volume | E38: DSV | F38: cf | G38: =IFERROR(IF(OR(G$10=$D75,G$10=$D72),"N/A",IF(G13>0,G13,IF(MAX(G67:G81)=0,"",IFERROR(MAX(G67:G81),"")))),"") -> 1280 | H38: =IFERROR(IF(OR(H$10=$D75,H$10=$D72),"N/A",IF(H13>0,H13,IF(MAX(H67:H81)=0,"",IFERROR(MAX(H67:H81),"")))),"") ->  | I38: =IFERROR(IF(OR(I$10=$D75,I$10=$D72),"N/A",IF(I13>0,I13,IF(MAX(I67:I81)=0,"",IFERROR(MAX(I67:I81),"")))),"") ->  | J38: =IFERROR(IF(OR(J$10=$D75,J$10=$D72),"N/A",IF(J13>0,J13,IF(MAX(J67:J81)=0,"",IFERROR(MAX(J67:J81),"")))),"") ->  | K38: =IFERROR(IF(OR(K$10=$D75,K$10=$D72),"N/A",IF(K13>0,K13,IF(MAX(K67:K81)=0,"",IFERROR(MAX(K67:K81),"")))),"") -> 
A39: for IC disc, IA/PC | D39: Impervious to Pervious Ratio | E39: IA/PC | F39: ac/ac | G39: =IF(G11=$D72,G8/G34,IF(G11="","","N/A")) -> N/A | H39: =IF(H11=$D72,H8/H34,IF(H11="","","N/A")) ->  | I39: =IF(I11=$D72,I8/I34,IF(I11="","","N/A")) ->  | J39: =IF(J11=$D72,J8/J34,IF(J11="","","N/A")) ->  | K39: =IF(K11=$D72,K8/K34,IF(K11="","","N/A")) -> 
A40: ignore if IC disc, then lookup if PPw/liner, then DSV/WQV | D40: Physical Storage Capacity: Depth of Runoff from IA (range of 0 - 2, goal > 0.1, optimal 0.4) | E40: PSC | F40: in | G40: =IF(G$10=$D72,"N/A",IF(G$10=$D74,G74,IFERROR(G38/(G8*3630),""))) -> 0.419782238 | H40: =IF(H$10=$D72,"N/A",IF(H$10=$D74,H74,IFERROR(H38/(H8*3630),""))) -> 
C41: Performance Curve Results | D41: Removal Efficiency: Volume | E41: VolRE | F41: - | G41: =IF(G$40="","", IF(AND(G$92,G$93),IFERROR(MAX(0,MIN(1,SUMIFS(G$98:G$163,$D$98:$D$163,G$11,$E$98:$E$163,$E41))),""),0)) -> 0.5976068622
D42: Removal Efficiency: P | E42: PRE | F42: - | G42: 0.7838137111
D43: Removal Efficiency: N | E43: NRE | F43: - | G43: 0.8979327953
D44: Removal Efficiency: TSS | E44: TSSRE | F44: - | G44: 0.9568686016
D45: Removal Efficiency: Zn | E45: ZnRE | F45: - | G45: 0.9829659096
D46: Removal Efficiency: Bacteria | E46: FIBRE | F46: - | G46: 0.7518819595
C47: Loading Rates | D47: Load: Volume | E47: VolLER | F47: Mgal/yr | G47: =IFERROR(VLOOKUP(G$9,table_PLER_abb,2,FALSE) * G$8 * 7.48/1000000,"") -> 0.8795500826 | H47: =IFERROR(VLOOKUP(H$9,table_PLER_abb,2,FALSE) * H$8 * 7.48/1000000,"") -> 
D48: Load: P | E48: PLER | F48: lb/yr | G48: =IFERROR(VLOOKUP(G$9,table_PLER_abb,3,FALSE) * G$8,"") -> 1.6464
D49: Load: N | E49: NLER | F49: lb/yr | G49: =IFERROR(VLOOKUP(G$9,table_PLER_abb,4,FALSE) * G$8,"") -> 11.844
D50: Load: TSS | E50: TSSLER | F50: lb/yr | G50: =IFERROR(VLOOKUP(G$9,table_PLER_abb,5,FALSE) * G$8,"") -> 368.76
D51: Load: Bacteria | E51: FIBLER | F51: Billion MPN/yr | G51: =IFERROR(IF(G$7='Tables (hidden_locked)'!$AD$2, VLOOKUP(G$9,table_PLER_abb,6,FALSE) * G$8,VLOOKUP(G$9,table_PLER_abb,7,FALSE) * G$8),"") -> 5.376 | H51: =IFERROR(IF(H$7='Tables (hidden_locked)'!$AD$2, VLOOKUP(H$9,table_PLER_abb,6,FALSE) * H$8,VLOOKUP(H$9,table_PLER_abb,7,FALSE) * H$8),"") ->  | I51: =IFERROR(IF(I$7='Tables (hidden_locked)'!$AD$2, VLOOKUP(I$9,table_PLER_abb,6,FALSE) * I$8,VLOOKUP(I$9,table_PLER_abb,7,FALSE) * I$8),"") ->  | J51: =IFERROR(IF(J$7='Tables (hidden_locked)'!$AD$2, VLOOKUP(J$9,table_PLER_abb,6,FALSE) * J$8,VLOOKUP(J$9,table_PLER_abb,7,FALSE) * J$8),"") ->  | K51: =IFERROR(IF(K$7='Tables (hidden_locked)'!$AD$2, VLOOKUP(K$9,table_PLER_abb,6,FALSE) * K$8,VLOOKUP(K$9,table_PLER_abb,7,FALSE) * K$8),"") -> 
C52: SCM Annual Performance | D52: Reduction: Volume | E52: VolRed | F52: Mgal/yr | G52: =IFERROR(G47*G41,"") -> 0.525625165
D53: Reduction: P | E53: PRed | F53: lb/yr | G53: 1.290470894
D54: Reduction: N | E54: NRed | F54: lb/yr | G54: 10.63511603
D55: Reduction: TSS | E55: TSSRed | F55: lb/yr | G55: 352.8548655
D56: Reduction: Bacteria | E56: FIBRed | F56: % | G56: =G46 -> 0.7518819595 | H56: =H46 ->  | I56: =I46 ->  | J56: =J46 ->  | K56: =K46 -> 
C57: Costs | D57: Estimated Total Costs | F57: $ | G57: =IF(G$38="","",IF(ISNUMBER(G$165), ROUNDUP(PRODUCT(G$6,G$38,G$165),-3),G$165)) -> 41000 | H57: =IF(H$38="","",IF(ISNUMBER(H$165), ROUNDUP(PRODUCT(H$6,H$38,H$165),-3),H$165)) ->  | I57: =IF(I$38="","",IF(ISNUMBER(I$165), ROUNDUP(PRODUCT(I$6,I$38,I$165),-3),I$165)) ->  | J57: =IF(J$38="","",IF(ISNUMBER(J$165), ROUNDUP(PRODUCT(J$6,J$38,J$165),-3),J$165)) ->  | K57: =IF(K$38="","",IF(ISNUMBER(K$165), ROUNDUP(PRODUCT(K$6,K$38,K$165),-3),K$165)) -> 
D58: Removal Costs: Volume | F58: $/Mgal-yr | G58: =IFERROR(IF(ISNUMBER(G$165), IF(G52=0,"N/A",ROUND(G$57/G52,-1)),G$57),"") -> 78000
D59: Removal Costs: P | F59: $/lb-yr | G59: 31770
D60: Removal Costs: N | F60: $/lb-yr | G60: 3860
D61: Removal Costs: TSS | F61: $/lb-yr | G61: 120
D62: Removal Costs: Bacteria | F62: $/%-yr | G62: =IFERROR(IF(ISNUMBER(G$165), IF(G56=0,"N/A",ROUND(G$57/G56/100,-1)),G$57),"") -> 550 | H62: =IFERROR(IF(ISNUMBER(H$165), IF(H56=0,"N/A",ROUND(H$57/H56/100,-1)),H$57),"") ->  | I62: =IFERROR(IF(ISNUMBER(I$165), IF(I56=0,"N/A",ROUND(I$57/I56/100,-1)),I$57),"") ->  | J62: =IFERROR(IF(ISNUMBER(J$165), IF(J56=0,"N/A",ROUND(J$57/J56/100,-1)),J$57),"") ->  | K62: =IFERROR(IF(ISNUMBER(K$165), IF(K56=0,"N/A",ROUND(K$57/K56/100,-1)),K$57),"") -> 
C63: O&M | D63: Estimated O&M Hours | F63: hr/yr | G63: =IF(ISNUMBER(G$166), G$166*G$8, G$166) -> 17.388 | H63: =IF(ISNUMBER(H$166), H$166*H$8, H$166) ->  | I63: =IF(ISNUMBER(I$166), I$166*I$8, I$166) ->  | J63: =IF(ISNUMBER(J$166), J$166*J$8, J$166) ->  | K63: =IF(ISNUMBER(K$166), K$166*K$8, K$166) -> 
D66: DSV calculation for each BMP | F66: Vlookup column: | G66: 4 | H66: 5 | I66: 6 | J66: 7 | K66: 8
A67: calc DSV using App F, Table 3-5 | D67: Biofiltration (w/ underdrain) | E67: DSV | F67: cf | G67: =IF(G$10=$D67,(PRODUCT(G$20:G$21) + PRODUCT(G$22:G$24)),"") ->  | H67: =IF(H$10=$D67,(PRODUCT(H$20:H$21) + PRODUCT(H$22:H$24)),"") -> 
D68: Bioretention/Rain Garden (no underdrains) | E68: DSV | F68: cf | G68: =IF(G$10=$D68,(PRODUCT(G$20:G$21) + PRODUCT(G$22:G$24)),"") -> 1280
D69: Enhanced Biofiltration w/ Internal Storage Reservoir (ISR) (no infiltration) | E69: DSV | F69: cf | G69: =IF(G$10=$D69,(PRODUCT(G$20:G$21) + PRODUCT(G$22:G$24) + PRODUCT(G$25:G$27)),"") ->  | H69: =IF(H$10=$D69,(PRODUCT(H$20:H$21) + PRODUCT(H$22:H$24) + PRODUCT(H$25:H$27)),"") -> 
D70: Extended Dry Detention Basin | E70: DSV | F70: cf | G70: =IF(G$10=$D70,(PRODUCT(G$20:G$21)),"") ->  | H70: =IF(H$10=$D70,(PRODUCT(H$20:H$21)),"") -> 
D71: Gravel Wetland | E71: DSV | F71: cf | G71: =IF(G$10=$D71,(PRODUCT(G$17:G$18) + PRODUCT(G$20:G$21) + PRODUCT(G$25:G$27)),"") ->  | H71: =IF(H$10=$D71,(PRODUCT(H$17:H$18) + PRODUCT(H$20:H$21) + PRODUCT(H$25:H$27)),"") -> 
A72: no DSV | D72: IC Disconnection
D73: Infiltration Trench | E73: DSV | F73: cf | G73: =IF(G$10=$D73,(PRODUCT(G$32:G$33)*(PRODUCT(G$26:G$27) + PRODUCT(G$29:G$30))),"") ->  | H73: =IF(H$10=$D73,(PRODUCT(H$32:H$33)*(PRODUCT(H$26:H$27) + PRODUCT(H$29:H$30))),"") ->  | I73: =IF(I$10=$D73,(PRODUCT(I$32:I$33)*(PRODUCT(I$26:I$27) + PRODUCT(I$29:I$30))),"") ->  | J73: =IF(J$10=$D73,(PRODUCT(J$32:J$33)*(PRODUCT(J$26:J$27) + PRODUCT(J$29:J$30))),"") ->  | K73: =IF(K$10=$D73,(PRODUCT(K$32:K$33)*(PRODUCT(K$26:K$27) + PRODUCT(K$29:K$30))),"") -> 
D74: Porous pavement w/ impermeable underliner & underdrain | E74: PSC | F74: in | G74: =IF(G$10=$D75,(G$19*12),"") ->  | H74: =IF(H$10=$D75,(H$19*12),"") -> 
A75: filter course porosity: | C75: 0.3 | D75: Porous pavement w/ impermeable underliner & underdrain | E75: DSV (for costs) | F75: cf | G75: =IF(G$10=$D75, PRODUCT(G$19,G$8,$C$75)*43560,"") ->  | H75: =IF(H$10=$D75, PRODUCT(H$19,H$8,$C$75)*43560,"") ->  | I75: =IF(I$10=$D75, PRODUCT(I$19,I$8,$C$75)*43560,"") ->  | J75: =IF(J$10=$D75, PRODUCT(J$19,J$8,$C$75)*43560,"") ->  | K75: =IF(K$10=$D75, PRODUCT(K$19,K$8,$C$75)*43560,"") -> 
D76: Porous Pavement w/ subsurface infiltration | E76: DSV | F76: cf | G76: =IF(G$10=$D76,(PRODUCT(G$26:G$27,G$32:G$33)),"") ->  | H76: =IF(H$10=$D76,(PRODUCT(H$26:H$27,H$32:H$33)),"") ->  | I76: =IF(I$10=$D76,(PRODUCT(I$26:I$27,I$32:I$33)),"") ->  | J76: =IF(J$10=$D76,(PRODUCT(J$26:J$27,J$32:J$33)),"") ->  | K76: =IF(K$10=$D76,(PRODUCT(K$26:K$27,K$32:K$33)),"") -> 
D77: Sand Filter w/ underdrain | E77: DSV | F77: cf | G77: =IF(G$10=$D77,(PRODUCT(G17:G18) + PRODUCT(G20:G21) + PRODUCT(G28:G30) + PRODUCT(G26:G27,G32:G33)),"") ->  | H77: =IF(H$10=$D77,(PRODUCT(H17:H18) + PRODUCT(H20:H21) + PRODUCT(H28:H30) + PRODUCT(H26:H27,H32:H33)),"") ->  | I77: =IF(I$10=$D77,(PRODUCT(I17:I18) + PRODUCT(I20:I21) + PRODUCT(I28:I30) + PRODUCT(I26:I27,I32:I33)),"") ->  | J77: =IF(J$10=$D77,(PRODUCT(J17:J18) + PRODUCT(J20:J21) + PRODUCT(J28:J30) + PRODUCT(J26:J27,J32:J33)),"") ->  | K77: =IF(K$10=$D77,(PRODUCT(K17:K18) + PRODUCT(K20:K21) + PRODUCT(K28:K30) + PRODUCT(K26:K27,K32:K33)),"") -> 
D78: Subsurface Infiltration | E78: DSV | F78: cf | G78: =IF(G$10=$D78,(PRODUCT(G$26:G$27,G$32:G$33) + PRODUCT(1-G$27,G$31,G$33)),"") ->  | H78: =IF(H$10=$D78,(PRODUCT(H$26:H$27,H$32:H$33) + PRODUCT(1-H$27,H$31,H$33)),"") -> 
D79: Surface Infiltration Practice | E79: DSV | F79: cf | G79: =IF(G$10=$D79,PRODUCT(AVERAGE(G$15:G$16),G$21,G$33),"") ->  | H79: =IF(H$10=$D79,PRODUCT(AVERAGE(H$15:H$16),H$21,H$33),"") -> 
D80: Water Quality Grass Swale w/ Detention | E80: DSV | F80: cf | G80: =IF(G$10=$D80,PRODUCT(AVERAGE(G$15:G$16),G$21,G$33),"") -> 
D81: Wet Pond | E81: DSV | F81: cf | G81: =IF(G$10=$D81, PRODUCT(G$20:G$21),"") ->  | H81: =IF(H$10=$D81, PRODUCT(H$20:H$21),"") -> 
D84: Lower limit | E84: Upper limit
A85: set boundary limits for future updates | C85: IR | D85: ='Tables (hidden_locked)'!E231 -> 0.17 | E85: ='Tables (hidden_locked)'!E236 -> 8.27
C86: IA/perv | D86: ='Tables (hidden_locked)'!F184 -> 0.014 | E86: ='Tables (hidden_locked)'!F194 -> 8
C87: PSC | D87: ='Tables (hidden_locked)'!F4 -> 0 | E87: ='Tables (hidden_locked)'!F12 -> 2 | G87: =AND(ISNUMBER(G12),G12>=$D$85) -> TRUE
A89: bounded values for interpolation | C89: bounded values for interpolation | D89: Bounded IR | F89: in/hr | G89: =IF(OR(NOT(ISNUMBER(G12)),G12=-999),-999,MAX($D85,MIN($E85,G12))) -> 0.52 | H89: =IF(OR(NOT(ISNUMBER(H12)),H12=-999),-999,MAX($D85,MIN($E85,H12))) -> -999 | I89: -999 | J89: -999 | K89: -999
D90: Bounded IA/perv | F90: ac/ac | G90: =IF(G39="N/A",-999,MAX($D86,MIN($E86,G39))) -> -999 | H90: 8 | I90: 8 | J90: 8 | K90: 8
D91: Bounded PSC | F91: in | G91: =IF(G40="N/A",-999,MAX($D87,MIN($E87,G40))) -> 0.419782238 | H91: 2 | I91: 2 | J91: 2 | K91: 2
D92: PSC credit? | G92: =G40>=$D$87 -> TRUE | H92: =H40>=$D$87 -> TRUE | I92: TRUE | J92: TRUE | K92: TRUE
D93: IR credit? | G93: =IF(NOT(G176),TRUE, AND(ISNUMBER(G12),G12>=$D$85)) -> TRUE | H93: TRUE | I93: =IF(NOT(I176),TRUE, AND(ISNUMBER(I12),I12>=$D$85)) -> TRUE | J93: =IF(NOT(J176),TRUE, AND(ISNUMBER(J12),J12>=$D$85)) -> TRUE | K93: TRUE
A95: lookup conversion table | D95: IC Disconnection HSG as numeric | G95: =IFERROR(VLOOKUP(G35,table_HSG_conv,2,FALSE),-999) -> -999 | H95: =IFERROR(VLOOKUP(H35,table_HSG_conv,2,FALSE),-999) -> -999 | I95: =IFERROR(VLOOKUP(I35,table_HSG_conv,2,FALSE),-999) -> -999 | J95: =IFERROR(VLOOKUP(J35,table_HSG_conv,2,FALSE),-999) -> -999 | K95: =IFERROR(VLOOKUP(K35,table_HSG_conv,2,FALSE),-999) -> -999
C97: calculator order | D97: performance for each curve | E97: same names as input for lookup
A98: interpolation from curves | C98: 1 | D98: Biofiltration | E98: VolRE | F98: RE | G98: 0 | H98: 0 | I98: 0 | J98: 0 | K98: 0
C99: 2 | D99: Dry Pond | E99: VolRE | F99: RE | G99: 0 | H99: 0 | I99: 0 | J99: 0 | K99: 0
C100: 3 | D100: Enhanced Biofiltration With ISR | E100: VolRE | F100: RE | G100: 0 | H100: 0 | I100: 0 | J100: 0 | K100: 0
C101: 4 | D101: Grass Swale | E101: VolRE | F101: RE | G101: 0 | H101: 0 | I101: 0 | J101: 0 | K101: 0
C102: 5 | D102: IC Disconnection | E102: VolRE | F102: RE | G102: =Interpolation_Bicubic(curve_ICDisc_Vol,G$95,G$90) -> 4.906281182e+20 | H102: =Interpolation_Bicubic(curve_ICDisc_Vol,H$95,H$90) -> 8403585.45 | I102: =Interpolation_Bicubic(curve_ICDisc_Vol,I$95,I$90) -> 8403585.45 | J102: =Interpolation_Bicubic(curve_ICDisc_Vol,J$95,J$90) -> 8403585.45 | K102: =Interpolation_Bicubic(curve_ICDisc_Vol,K$95,K$90) -> 8403585.45
C103: 6 | D103: Infiltration Basin | E103: VolRE | F103: RE | G103: =Interpolation_Bicubic(curve_InfBasin_Vol,G$91,G$89) -> 0.5976068622 | H103: =Interpolation_Bicubic(curve_InfBasin_Vol,H$91,H$89) -> -184920507 | I103: =Interpolation_Bicubic(curve_InfBasin_Vol,I$91,I$89) -> -184920507 | J103: =Interpolation_Bicubic(curve_InfBasin_Vol,J$91,J$89) -> -184920507 | K103: =Interpolation_Bicubic(curve_InfBasin_Vol,K$91,K$89) -> -184920507
C104: 7 | D104: Infiltration Trench | E104: VolRE | F104: RE | G104: =Interpolation_Bicubic(curve_InfTrench_Vol,G$91,G$89) -> 0.6353663233 | H104: =Interpolation_Bicubic(curve_InfTrench_Vol,H$91,H$89) -> -159380685.2 | I104: =Interpolation_Bicubic(curve_InfTrench_Vol,I$91,I$89) -> -159380685.2 | J104: =Interpolation_Bicubic(curve_InfTrench_Vol,J$91,J$89) -> -159380685.2 | K104: =Interpolation_Bicubic(curve_InfTrench_Vol,K$91,K$89) -> -159380685.2
C105: 8 | D105: Porous Pavement | E105: VolRE | F105: RE | G105: 0 | H105: 0 | I105: 0 | J105: 0 | K105: 0
C106: 9 | D106: Sand Filter | E106: VolRE | F106: RE | G106: 0 | H106: 0 | I106: 0 | J106: 0 | K106: 0
C107: 10 | D107: Subsurface Gravel Wetland | E107: VolRE | F107: RE | G107: 0 | H107: 0 | I107: 0 | J107: 0 | K107: 0
C108: 11 | D108: Wet Pond | E108: VolRE | F108: RE | G108: 0 | H108: 0 | I108: 0 | J108: 0 | K108: 0
C109: 12 | D109: Biofiltration | E109: PRE | F109: RE | G109: =Interpolation_Cubic(curve_Biofilt_PSC,curve_Biofilt_TP,G$91) -> 0.3782917205 | H109: =Interpolation_Cubic(curve_Biofilt_PSC,curve_Biofilt_TP,H$91) -> 0.63 | I109: =Interpolation_Cubic(curve_Biofilt_PSC,curve_Biofilt_TP,I$91) -> 0.63 | J109: =Interpolation_Cubic(curve_Biofilt_PSC,curve_Biofilt_TP,J$91) -> 0.63 | K109: 0.63
C110: 13 | D110: Dry Pond | E110: PRE | F110: RE | G110: =Interpolation_Cubic(curve_DryPond_PSC,curve_DryPond_TP,G$91) -> 0.09598164404 | H110: =Interpolation_Cubic(curve_DryPond_PSC,curve_DryPond_TP,H$91) -> 0.3643 | I110: =Interpolation_Cubic(curve_DryPond_PSC,curve_DryPond_TP,I$91) -> 0.3643 | J110: 0.3643 | K110: 0.3643
C111: 14 | D111: Enhanced Biofiltration With ISR | E111: PRE | F111: RE | G111: =Interpolation_Cubic(curve_Biofilt_ISR_PSC,curve_Biofilt_ISR_TP,G$91) -> 0.5434677449 | H111: =Interpolation_Cubic(curve_Biofilt_ISR_PSC,curve_Biofilt_ISR_TP,H$91) -> 0.89 | I111: =Interpolation_Cubic(curve_Biofilt_ISR_PSC,curve_Biofilt_ISR_TP,I$91) -> 0.89 | J111: 0.89 | K111: 0.89
C112: 15 | D112: Grass Swale | E112: PRE | F112: RE | G112: =Interpolation_Cubic(curve_GrassSwale_PSC,curve_GrassSwale_TP,G$91) -> 0.09598164404 | H112: =Interpolation_Cubic(curve_GrassSwale_PSC,curve_GrassSwale_TP,H$91) -> 0.3643 | I112: =Interpolation_Cubic(curve_GrassSwale_PSC,curve_GrassSwale_TP,I$91) -> 0.3643 | J112: 0.3643 | K112: 0.3643
C113: 16 | D113: IC Disconnection | E113: PRE | F113: RE | G113: =Interpolation_Bicubic(curve_ICDisc_TP,G$95,G$90) -> 4.906281182e+20 | H113: =Interpolation_Bicubic(curve_ICDisc_TP,H$95,H$90) -> 8403585.45 | I113: =Interpolation_Bicubic(curve_ICDisc_TP,I$95,I$90) -> 8403585.45 | J113: =Interpolation_Bicubic(curve_ICDisc_TP,J$95,J$90) -> 8403585.45 | K113: =Interpolation_Bicubic(curve_ICDisc_TP,K$95,K$90) -> 8403585.45
C114: 17 | D114: Infiltration Basin | E114: PRE | F114: RE | G114: =Interpolation_Bicubic(curve_InfBasin_TP,G$91,G$89) -> 0.7838137111 | H114: =Interpolation_Bicubic(curve_InfBasin_TP,H$91,H$89) -> -31308590.52 | I114: =Interpolation_Bicubic(curve_InfBasin_TP,I$91,I$89) -> -31308590.52 | J114: =Interpolation_Bicubic(curve_InfBasin_TP,J$91,J$89) -> -31308590.52 | K114: =Interpolation_Bicubic(curve_InfBasin_TP,K$91,K$89) -> -31308590.52
C115: 18 | D115: Infiltration Trench | E115: PRE | F115: RE | G115: =Interpolation_Bicubic(curve_InfTrench_TP,G$91,G$89) -> 0.6983790367 | H115: =Interpolation_Bicubic(curve_InfTrench_TP,H$91,H$89) -> -31308590.52 | I115: =Interpolation_Bicubic(curve_InfTrench_TP,I$91,I$89) -> -31308590.52 | J115: =Interpolation_Bicubic(curve_InfTrench_TP,J$91,J$89) -> -31308590.52 | K115: =Interpolation_Bicubic(curve_InfTrench_TP,K$91,K$89) -> -31308590.52
C116: 19 | D116: Porous Pavement | E116: PRE | F116: RE | G116: =Interpolation_Cubic(curve_PorPave_PSC,curve_PorPave_TP,G$91) -> 0.02710055675 | H116: 0.1284250943 | I116: 0.1284250943 | J116: 0.1284250943 | K116: 0.1284250943
C117: 20 | D117: Sand Filter | E117: PRE | F117: RE | G117: =Interpolation_Cubic(curve_Sand_PSC,curve_Sand_TP,G$91) -> 0.3782917205 | H117: 0.63 | I117: 0.63 | J117: 0.63 | K117: 0.63
C118: 21 | D118: Subsurface Gravel Wetland | E118: PRE | F118: RE | G118: =Interpolation_Cubic(curve_SubGravWet_PSC,curve_SubGravWet_TP,G$91) -> 0.4272785543 | H118: 0.6629063362 | I118: 0.6629063362 | J118: 0.6629063362 | K118: 0.6629063362
C119: 22 | D119: Wet Pond | E119: PRE | F119: RE | G119: =Interpolation_Cubic(curve_WetPond_PSC,curve_WetPond_TP,G$91) -> 0.3782917205 | H119: 0.63 | I119: 0.63 | J119: 0.63 | K119: 0.63
C120: 23 | D120: Biofiltration | E120: NRE | F120: RE | G120: =Interpolation_Cubic(curve_Biofilt_PSC,curve_Biofilt_TN,G$91) -> 0.2351215314 | H120: 0.4 | I120: 0.4 | J120: 0.4 | K120: 0.4
C121: 24 | D121: Dry Pond | E121: NRE | F121: RE | G121: =Interpolation_Cubic(curve_DryPond_PSC,curve_DryPond_TN,G$91) -> 0.05966759095 | H121: 0.2313015873 | I121: 0.2313015873 | J121: 0.2313015873 | K121: 0.2313015873
C122: 25 | D122: Enhanced Biofiltration With ISR | E122: NRE | F122: RE | G122: =Interpolation_Cubic(curve_Biofilt_ISR_PSC,curve_Biofilt_ISR_TN,G$91) -> 0.5908651592 | H122: 0.86 | I122: 0.86 | J122: 0.86 | K122: 0.86
C123: 26 | D123: Grass Swale | E123: NRE | F123: RE | G123: =Interpolation_Cubic(curve_GrassSwale_PSC,curve_GrassSwale_TN,G$91) -> 0.05966759095 | H123: 0.2313015873 | I123: 0.2313015873 | J123: 0.2313015873 | K123: 0.2313015873
C124: 27 | D124: IC Disconnection | E124: NRE | F124: RE | G124: =Interpolation_Bicubic(curve_ICDisc_TN,G$95,G$90) -> 4.906281182e+20 | H124: =Interpolation_Bicubic(curve_ICDisc_TN,H$95,H$90) -> 8403585.45 | I124: =Interpolation_Bicubic(curve_ICDisc_TN,I$95,I$90) -> 8403585.45 | J124: =Interpolation_Bicubic(curve_ICDisc_TN,J$95,J$90) -> 8403585.45 | K124: =Interpolation_Bicubic(curve_ICDisc_TN,K$95,K$90) -> 8403585.45
C125: 28 | D125: Infiltration Basin | E125: NRE | F125: RE | G125: =Interpolation_Bicubic(curve_InfBasin_TN,G$91,G$89) -> 0.8979327953 | H125: =Interpolation_Bicubic(curve_InfBasin_TN,H$91,H$89) -> 1.000022411 | I125: =Interpolation_Bicubic(curve_InfBasin_TN,I$91,I$89) -> 1.000022411 | J125: =Interpolation_Bicubic(curve_InfBasin_TN,J$91,J$89) -> 1.000022411 | K125: =Interpolation_Bicubic(curve_InfBasin_TN,K$91,K$89) -> 1.000022411
C126: 29 | D126: Infiltration Trench | E126: NRE | F126: RE | G126: =Interpolation_Bicubic(curve_InfTrench_TN,G$91,G$89) -> 0.9078136348 | H126: =Interpolation_Bicubic(curve_InfTrench_TN,H$91,H$89) -> 1.000022411 | I126: =Interpolation_Bicubic(curve_InfTrench_TN,I$91,I$89) -> 1.000022411 | J126: =Interpolation_Bicubic(curve_InfTrench_TN,J$91,J$89) -> 1.000022411 | K126: =Interpolation_Bicubic(curve_InfTrench_TN,K$91,K$89) -> 1.000022411
C127: 30 | D127: Porous Pavement | E127: NRE | F127: RE | G127: =Interpolation_Cubic(curve_PorPave_PSC,curve_PorPave_TN,G$91) -> 0.03551635243 | H127: 0.1680820541 | I127: 0.1680820541 | J127: 0.1680820541 | K127: 0.1680820541
C128: 31 | D128: Sand Filter | E128: NRE | F128: RE | G128: =Interpolation_Cubic(curve_Sand_PSC,curve_Sand_TN,G$91) -> 0.2351215314 | H128: 0.4 | I128: 0.4 | J128: 0.4 | K128: 0.4
C129: 32 | D129: Subsurface Gravel Wetland | E129: NRE | F129: RE | G129: =Interpolation_Cubic(curve_SubGravWet_PSC,curve_SubGravWet_TN,G$91) -> 0.4914109748 | H129: 0.79 | I129: 0.79 | J129: 0.79 | K129: 0.79
C130: 33 | D130: Wet Pond | E130: NRE | F130: RE | G130: =Interpolation_Cubic(curve_WetPond_PSC,curve_WetPond_TN,G$91) -> 0.2351215314 | H130: 0.4 | I130: 0.4 | J130: 0.4 | K130: 0.4
C131: 34 | D131: Biofiltration | E131: TSSRE | F131: RE | G131: =Interpolation_Cubic(curve_Biofilt_PSC,curve_Biofilt_TSS,G$91) -> 0.9207295324 | H131: 1 | I131: 1 | J131: 1 | K131: 1
C132: 35 | D132: Dry Pond | E132: TSSRE | F132: RE | G132: =Interpolation_Cubic(curve_DryPond_PSC,curve_DryPond_TSS,G$91) -> 0.381300872 | H132: 0.49 | I132: 0.49 | J132: 0.49 | K132: 0.49
C133: 36 | D133: Enhanced Biofiltration With ISR | E133: TSSRE | F133: RE | G133: =Interpolation_Cubic(curve_Biofilt_ISR_PSC,curve_Biofilt_ISR_TSS,G$91) -> 0.9207295324 | H133: 1 | I133: 1 | J133: 1 | K133: 1
C134: 37 | D134: Grass Swale | E134: TSSRE | F134: RE | G134: =Interpolation_Cubic(curve_GrassSwale_PSC,curve_GrassSwale_TSS,G$91) -> 0.6217781625 | H134: 0.9 | I134: 0.9 | J134: 0.9 | K134: 0.9
C135: 38 | D135: IC Disconnection | E135: TSSRE | F135: RE | G135: =Interpolation_Bicubic(curve_ICDisc_TSS,G$95,G$90) -> 4.906281182e+20 | H135: =Interpolation_Bicubic(curve_ICDisc_TSS,H$95,H$90) -> 8403585.45 | I135: =Interpolation_Bicubic(curve_ICDisc_TSS,I$95,I$90) -> 8403585.45 | J135: =Interpolation_Bicubic(curve_ICDisc_TSS,J$95,J$90) -> 8403585.45 | K135: =Interpolation_Bicubic(curve_ICDisc_TSS,K$95,K$90) -> 8403585.45
C136: 39 | D136: Infiltration Basin | E136: TSSRE | F136: RE | G136: =Interpolation_Bicubic(curve_InfBasin_TSS,G$91,G$89) -> 0.9568686016 | H136: =Interpolation_Bicubic(curve_InfBasin_TSS,H$91,H$89) -> 1.000022411 | I136: =Interpolation_Bicubic(curve_InfBasin_TSS,I$91,I$89) -> 1.000022411 | J136: =Interpolation_Bicubic(curve_InfBasin_TSS,J$91,J$89) -> 1.000022411 | K136: =Interpolation_Bicubic(curve_InfBasin_TSS,K$91,K$89) -> 1.000022411
C137: 40 | D137: Infiltration Trench | E137: TSSRE | F137: RE | G137: =Interpolation_Bicubic(curve_InfTrench_TSS,G$91,G$89) -> 0.9229864123 | H137: =Interpolation_Bicubic(curve_InfTrench_TSS,H$91,H$89) -> 1.000022411 | I137: =Interpolation_Bicubic(curve_InfTrench_TSS,I$91,I$89) -> 1.000022411 | J137: =Interpolation_Bicubic(curve_InfTrench_TSS,J$91,J$89) -> 1.000022411 | K137: =Interpolation_Bicubic(curve_InfTrench_TSS,K$91,K$89) -> 1.000022411
C138: 41 | D138: Porous Pavement | E138: TSSRE | F138: RE | G138: =Interpolation_Cubic(curve_PorPave_PSC,curve_PorPavE_TSS,G$91) -> 0.04292131464 | H138: 0.2031330714 | I138: 0.2031330714 | J138: 0.2031330714 | K138: 0.2031330714
C139: 42 | D139: Sand Filter | E139: TSSRE | F139: RE | G139: =Interpolation_Cubic(curve_Sand_PSC,curve_Sand_TSS,G$91) -> 0.9207295324 | H139: 1 | I139: 1 | J139: 1 | K139: 1
C140: 43 | D140: Subsurface Gravel Wetland | E140: TSSRE | F140: RE | G140: =Interpolation_Cubic(curve_SubGravWet_PSC,curve_SubGravWet_TSS,G$91) -> 0.8364930317 | H140: 0.99 | I140: 0.99 | J140: 0.99 | K140: 0.99
C141: 44 | D141: Wet Pond | E141: TSSRE | F141: RE | G141: =Interpolation_Cubic(curve_WetPond_PSC,curve_WetPond_TSS,G$91) -> 0.6108929995 | H141: 0.86 | I141: 0.86 | J141: 0.86 | K141: 0.86
C142: 45 | D142: Biofiltration | E142: ZnRE | F142: RE | G142: =Interpolation_Cubic(curve_Biofilt_PSC,curve_Biofilt_TZn,G$91) -> 0.9523946373 | H142: 0.99 | I142: 0.99 | J142: 0.99 | K142: 0.99
C143: 46 | D143: Dry Pond | E143: ZnRE | F143: RE | G143: =Interpolation_Cubic(curve_DryPond_PSC,curve_DryPond_TZn,G$91) -> 0.6795144542 | H143: 0.76 | I143: 0.76 | J143: 0.76 | K143: 0.76
C144: 47 | D144: Enhanced Biofiltration With ISR | E144: ZnRE | F144: RE | G144: =Interpolation_Cubic(curve_Biofilt_ISR_PSC,curve_Biofilt_ISR_TZn,G$91) -> 0.9523946373 | H144: 0.99 | I144: 0.99 | J144: 0.99 | K144: 0.99
C145: 48 | D145: Grass Swale | E145: ZnRE | F145: RE | G145: =Interpolation_Cubic(curve_GrassSwale_PSC,curve_GrassSwale_TZn,G$91) -> 0.8691046076 | H145: 0.99 | I145: 0.99 | J145: 0.99 | K145: 0.99
C146: 49 | D146: IC Disconnection | E146: ZnRE | F146: RE | G146: =Interpolation_Bicubic(curve_ICDisc_TZn,G$95,G$90) -> 4.906281182e+20 | H146: =Interpolation_Bicubic(curve_ICDisc_TZn,H$95,H$90) -> 8403585.45 | I146: =Interpolation_Bicubic(curve_ICDisc_TZn,I$95,I$90) -> 8403585.45 | J146: =Interpolation_Bicubic(curve_ICDisc_TZn,J$95,J$90) -> 8403585.45 | K146: =Interpolation_Bicubic(curve_ICDisc_TZn,K$95,K$90) -> 8403585.45
C147: 50 | D147: Infiltration Basin | E147: ZnRE | F147: RE | G147: =Interpolation_Bicubic(curve_InfBasin_TZn,G$91,G$89) -> 0.9829659096 | H147: =Interpolation_Bicubic(curve_InfBasin_TZn,H$91,H$89) -> 1.000022411 | I147: =Interpolation_Bicubic(curve_InfBasin_TZn,I$91,I$89) -> 1.000022411 | J147: =Interpolation_Bicubic(curve_InfBasin_TZn,J$91,J$89) -> 1.000022411 | K147: =Interpolation_Bicubic(curve_InfBasin_TZn,K$91,K$89) -> 1.000022411
C148: 51 | D148: Infiltration Trench | E148: ZnRE | F148: RE | G148: =Interpolation_Bicubic(curve_InfTrench_TZn,G$91,G$89) -> 0.9829659096 | H148: =Interpolation_Bicubic(curve_InfTrench_TZn,H$91,H$89) -> 1.000022411 | I148: =Interpolation_Bicubic(curve_InfTrench_TZn,I$91,I$89) -> 1.000022411 | J148: =Interpolation_Bicubic(curve_InfTrench_TZn,J$91,J$89) -> 1.000022411 | K148: =Interpolation_Bicubic(curve_InfTrench_TZn,K$91,K$89) -> 1.000022411
C149: 52 | D149: Porous Pavement | E149: ZnRE | F149: RE | G149: =Interpolation_Cubic(curve_PorPave_PSC,curve_PorPave_TZn,G$91) -> 0.0363833375 | H149: 0.1725016752 | I149: 0.1725016752 | J149: 0.1725016752 | K149: 0.1725016752
C150: 53 | D150: Sand Filter | E150: ZnRE | F150: RE | G150: =Interpolation_Cubic(curve_Sand_PSC,curve_Sand_TZn,G$91) -> 0.9523946373 | H150: 0.99 | I150: 0.99 | J150: 0.99 | K150: 0.99
C151: 54 | D151: Subsurface Gravel Wetland | E151: ZnRE | F151: RE | G151: =Interpolation_Cubic(curve_SubGravWet_PSC,curve_SubGravWet_TZn,G$91) -> 0.8418994125 | H151: 0.92 | I151: 0.92 | J151: 0.92 | K151: 0.92
C152: 55 | D152: Wet Pond | E152: ZnRE | F152: RE | G152: =Interpolation_Cubic(curve_WetPond_PSC,curve_WetPond_TZn,G$91) -> 0.8083395202 | H152: 0.93 | I152: 0.93 | J152: 0.93 | K152: 0.93
C153: 56 | D153: Biofiltration | E153: FIBRE | F153: RE | G153: =Interpolation_Cubic(curve_Biofilt_PSC,curve_Biofilt_FIB,G$91) -> 0.3126574615 | H153: 0.747 | I153: 0.747 | J153: 0.747 | K153: 0.747
C154: 57 | D154: Dry Pond | E154: FIBRE | F154: RE | G154: =Interpolation_Cubic(curve_DryPond_PSC,curve_DryPond_FIB,G$91) -> 0.0009112385292 | H154: 0.0426 | I154: 0.0426 | J154: 0.0426 | K154: 0.0426
C155: 58 | D155: Enhanced Biofiltration With ISR | E155: FIBRE | F155: RE | G155: =Interpolation_Cubic(curve_Biofilt_ISR_PSC,curve_Biofilt_ISR_FIB,G$91) -> 0.6550427514 | H155: 0.9129 | I155: 0.9129 | J155: 0.9129 | K155: 0.9129
C156: 59 | D156: Grass Swale | E156: FIBRE | F156: RE | G156: =Interpolation_Cubic(curve_GrassSwale_PSC,curve_GrassSwale_FIB,G$91) -> 0 | H156: 0 | I156: 0 | J156: 0 | K156: 0
C157: 60 | D157: IC Disconnection | E157: FIBRE | F157: RE | G157: =Interpolation_Bicubic(curve_ICDisc_FIB,G$95,G$90) -> 4.906281182e+20 | H157: =Interpolation_Bicubic(curve_ICDisc_FIB,H$95,H$90) -> 8403585.45 | I157: =Interpolation_Bicubic(curve_ICDisc_FIB,I$95,I$90) -> 8403585.45 | J157: =Interpolation_Bicubic(curve_ICDisc_FIB,J$95,J$90) -> 8403585.45 | K157: =Interpolation_Bicubic(curve_ICDisc_FIB,K$95,K$90) -> 8403585.45
C158: 61 | D158: Infiltration Basin | E158: FIBRE | F158: RE | G158: =Interpolation_Bicubic(curve_InfBasin_FIB,G$91,G$89) -> 0.7518819595 | H158: =Interpolation_Bicubic(curve_InfBasin_FIB,H$91,H$89) -> -59991239.73 | I158: =Interpolation_Bicubic(curve_InfBasin_FIB,I$91,I$89) -> -59991239.73 | J158: =Interpolation_Bicubic(curve_InfBasin_FIB,J$91,J$89) -> -59991239.73 | K158: =Interpolation_Bicubic(curve_InfBasin_FIB,K$91,K$89) -> -59991239.73
C159: 62 | D159: Infiltration Trench | E159: FIBRE | F159: RE | G159: =Interpolation_Bicubic(curve_InfTrench_FIB,G$91,G$89) -> 0.6238658607 | H159: =Interpolation_Bicubic(curve_InfTrench_FIB,H$91,H$89) -> -104011118 | I159: =Interpolation_Bicubic(curve_InfTrench_FIB,I$91,I$89) -> -104011118 | J159: =Interpolation_Bicubic(curve_InfTrench_FIB,J$91,J$89) -> -104011118 | K159: =Interpolation_Bicubic(curve_InfTrench_FIB,K$91,K$89) -> -104011118
C160: 63 | D160: Porous Pavement | E160: FIBRE | F160: RE | G160: =Interpolation_Cubic(curve_PorPave_PSC,curve_PorPave_FIB,G$91) -> 0 | H160: 0 | I160: 0 | J160: 0 | K160: 0
C161: 64 | D161: Sand Filter | E161: FIBRE | F161: RE | G161: =Interpolation_Cubic(curve_Sand_PSC,curve_Sand_FIB,G$91) -> 0.7353450752 | H161: 0.919 | I161: 0.919 | J161: 0.919 | K161: 0.919
C162: 65 | D162: Subsurface Gravel Wetland | E162: FIBRE | F162: RE | G162: =Interpolation_Cubic(curve_SubGravWet_PSC,curve_SubGravWet_FIB,G$91) -> 0.6662739802 | H162: 0.8067 | I162: 0.8067 | J162: 0.8067 | K162: 0.8067
C163: 66 | D163: Wet Pond | E163: FIBRE | F163: RE | G163: =Interpolation_Cubic(curve_WetPond_PSC,curve_WetPond_FIB,G$91) -> 0.3988949777 | H163: 0.792 | I163: 0.792 | J163: 0.792 | K163: 0.792
B165: base cost/DSV | D165: x1 Costs | F165: $/DSV/yr | G165: =IFERROR(VLOOKUP(G$10,table_SCM_appcurve_costs_OM,3,FALSE),"") -> 15.87022277 | H165: =IFERROR(VLOOKUP(H$10,table_SCM_appcurve_costs_OM,3,FALSE),"") -> 
B166: base hr/IA | D166: Estimated O&M Hours | F166: hr/yr | G166: =IFERROR(VLOOKUP(G$10,table_SCM_appcurve_costs_OM,4,FALSE),"") -> 20.7
D175: Conditional Formatting of inputs by SCM | F175: row of table
A176: True values return orange input conditional formatting | D176: Infiltration Rate (0.17-8.27) | E176: IR | F176: in/hr | G176: =IF(OR(G$11='Tables (hidden_locked)'!$Q$21,G$11='Tables (hidden_locked)'!$Q$22),TRUE,0) -> TRUE | H176: =IF(OR(H$11='Tables (hidden_locked)'!$Q$21,H$11='Tables (hidden_locked)'!$Q$22),TRUE,0) -> 0 | I176: =IF(OR(I$11='Tables (hidden_locked)'!$Q$21,I$11='Tables (hidden_locked)'!$Q$22),TRUE,0) -> 0 | J176: =IF(OR(J$11='Tables (hidden_locked)'!$Q$21,J$11='Tables (hidden_locked)'!$Q$22),TRUE,0) -> 0 | K176: =IF(OR(K$11='Tables (hidden_locked)'!$Q$21,K$11='Tables (hidden_locked)'!$Q$22),TRUE,0) -> 0
D178: Width at top @ Dmax | E178: WDmax | F178: 2 | G178: =IFERROR(IF(HLOOKUP(G$10, table_cond_format,$F178,FALSE),TRUE,0),0) -> 0 | H178: =IFERROR(IF(HLOOKUP(H$10, table_cond_format,$F178,FALSE),TRUE,0),0) -> 0 | I178: 0 | J178: 0 | K178: 0
D179: Width at bed | E179: Wbottom | F179: 3 | G179: 0 | H179: 0 | I179: 0 | J179: 0 | K179: 0
D180: Area of pretreatment | E180: Apretreatment | F180: 4 | G180: 0 | H180: 0 | I180: 0 | J180: 0 | K180: 0
D181: Depth of pretreatment | E181: Dpretreatment | F181: 5 | G181: 0 | H181: 0 | I181: 0 | J181: 0 | K181: 0
D182: Depth of filter course | E182: DFC | F182: 6 | G182: 0 | H182: 0 | I182: 0 | J182: 0 | K182: 0
D183: Area of pond | E183: Apond | F183: 7 | G183: TRUE | H183: 0 | I183: 0 | J183: 0 | K183: 0
D184: Depth of ponding | E184: Dponding | F184: 8 | G184: TRUE | H184: 0 | I184: 0 | J184: 0 | K184: 0
D185: Area of media | E185: Asoil | F185: 9 | G185: TRUE | H185: 0 | I185: 0 | J185: 0 | K185: 0
D186: Depth of media | E186: Dsoil | F186: 10 | G186: TRUE | H186: 0 | I186: 0 | J186: 0 | K186: 0
D187: Porosity of media (typical 0.2) | E187: ηsoil | F187: 11 | G187: TRUE | H187: 0 | I187: 0 | J187: 0 | K187: 0
D188: Area of ISR | E188: AISR | F188: 12 | G188: =IFERROR(IF(HLOOKUP(G$10, table_cond_format,$F188,FALSE),TRUE,0),0) -> 0 | H188: 0 | I188: 0 | J188: 0 | K188: 0
D189: Depth of gravel/stone | E189: Dgravel | F189: 13 | G189: 0 | H189: 0 | I189: 0 | J189: 0 | K189: 0
D190: Porosity of gravel/stone (typical 0.4) | E190: ηgravel | F190: 14 | G190: 0 | H190: 0 | I190: 0 | J190: 0 | K190: 0
D191: Area of sand | E191: Asand | F191: 15 | G191: 0 | H191: 0 | I191: 0 | J191: 0 | K191: 0
D192: Depth of sand | E192: Dsand | F192: 16 | G192: 0 | H192: 0 | I192: 0 | J192: 0 | K192: 0
D193: Porosity of sand (typical 0.3) | E193: ηsand | F193: 17 | G193: 0 | H193: 0 | I193: 0 | J193: 0 | K193: 0
D194: Area cross-section of galley/chambers/pipes (total) | E194: Ax-section galley | F194: 18 | G194: 0 | H194: 0 | I194: 0 | J194: 0 | K194: 0
D195: Width | E195: W | F195: 19 | G195: 0 | H195: 0 | I195: 0 | J195: 0 | K195: 0
D196: Length | E196: L | F196: 20 | G196: 0 | H196: 0 | I196: 0 | J196: 0 | K196: 0
D197: Pervious area | E197: Aperv | F197: 21 | G197: 0 | H197: 0 | I197: 0 | J197: 0 | K197: 0
D198: Pervious Hydrologic Soil Group | E198: HSGperv | F198: 22 | G198: 0 | H198: 0 | I198: 0 | J198: 0 | K198: 0
D202: min | E202: 0.1
D203: min txt | E203: DSV too small, increase for PSC > 0.1
D204: low range | E204: 0.3
D205: low range txt | E205: DSV small, increase for optimal range 0.3 ≤ PSC ≤ 0.6
D206: optimal range | E206: 0.6
D207: optimal range txt | E207: PSC in optimal range 0.3 ≤ PSC ≤ 0.6
D208: too large | E208: 2
D209: too large txt
D210: way too large txt | E210: Max credit for PSC = 2
A211: ignore if IC disc, then lookup if PPw/liner, then DSV/WQV | D211: Physical Storage Capacity: Depth of Runoff from IA (range of 0 - 2, goal > 0.1, optimal 0.4) | E211: PSC | F211: in | G211: =IF(NOT(ISNUMBER(G40)),"",IF(G40<$E$202,$E$203,IF(G40<$E$204,$E$205,IF(G40<=$E$206,$E$207,IF(G40<=$E$208,$E$209,$E$210))))) -> PSC in optimal range 0.3 ≤ PSC ≤ 0.6 | H211: =IF(NOT(ISNUMBER(H40)),"",IF(H40<$E$202,$E$203,IF(H40<$E$204,$E$205,IF(H40<=$E$206,$E$207,IF(H40<=$E$208,$E$209,$E$210))))) -> 

Sheet Input_Design_Output
B1: Notes | C1: Parameter | D1: Abbrev. | E1: Units | F1: SCM 1 | G1: SCM 2 | H1: SCM 3 | I1: SCM 4 | J1: SCM 5
A2: Input: Site & SCM | B2: Site | C2: ID | F2: Example Bioretention
C3: Date | F3: 2021-07-01
C4: Location
C5: Description/Notes
C6: Costs Multiplier (Recommended 1-3) | F6: 2
C7: Location (for FIB) | F7: Inland
B8: Watershed | C8: Impervious Drainage Area | D8: IA | E8: ac | F8: =1*0.84 -> 0.84
C9: Land Use | D9: LU | E9: - | F9: Medium-Density Residential
B10: Stormwater Control Measure | C10: Stormwater Control Measure | D10: SCM | E10: - | F10: Bioretention/Rain Garden (no underdrains)
C11: Applicable Performance Curve (See Crosswalk) | D11: - | E11: - | F11: ='Calcs (hidden_locked)'!G11 -> Infiltration Basin | G11: ='Calcs (hidden_locked)'!H11 ->  | H11: ='Calcs (hidden_locked)'!I11 ->  | I11: ='Calcs (hidden_locked)'!J11 ->  | J11: ='Calcs (hidden_locked)'!K11 -> 
C12: Infiltration Rate (0.17-8.27) | D12: IR | E12: in/hr | F12: 0.52
C13: Known DSV (to skip design section below, or blank) | D13: DSV | E13: cf
A15: Input: SCM Design | B15: SCM Design Specifications: DSV is calculated from orange Input cells only. Formulas, Goal Seek, and Solver may be used in any cell. | C15: Width at top @ Dmax | D15: WDmax | E15: ft
C16: Width at bed | D16: Wbottom | E16: ft
C17: Area of pretreatment | D17: Apretreatment | E17: sf
C18: Depth of pretreatment | D18: Dpretreatment | E18: ft
C19: Depth of filter course | D19: DFC | E19: ft
C20: Area of pond | D20: Apond | E20: sf | F20: 800
C21: Depth of ponding | D21: Dponding | E21: ft | F21: 1
C22: Area of media | D22: Asoil | E22: sf | F22: 800
C23: Depth of media | D23: Dsoil | E23: ft | F23: 3
C24: Porosity of media (recommended 0.2) | D24: ηsoil | E24: - | F24: 0.2
C25: Area of ISR | D25: AISR | E25: sf
C26: Depth of gravel/stone | D26: Dgravel | E26: ft
C27: Porosity of gravel/stone (recommended 0.4) | D27: ηgravel | E27: -
C28: Area of sand | D28: Asand | E28: sf
C29: Depth of sand | D29: Dsand | E29: ft
C30: Porosity of sand (recommended 0.3) | D30: ηsand | E30: -
C31: Area cross-section of galley/chambers/pipes | D31: Ax-section galley | E31: sf
C32: Width | D32: W | E32: ft | F32: 40
C33: Length | D33: L | E33: ft | F33: 20
C34: Pervious area | D34: Aperv | E34: ac
C35: Pervious Hydrologic Soil Group | D35: HSGperv | E35: -
A38: Output | B38: Intermediate Calculations | C38: Design Storage Volume | D38: DSV | E38: cf | F38: ='Calcs (hidden_locked)'!G38 -> 1280 | G38: ='Calcs (hidden_locked)'!H38 ->  | H38: ='Calcs (hidden_locked)'!I38 ->  | I38: ='Calcs (hidden_locked)'!J38 ->  | J38: ='Calcs (hidden_locked)'!K38 -> 
C39: Impervious to Pervious Ratio (range of 0.014 - 8) | D39: IA/PC | E39: ac/ac | F39: ='Calcs (hidden_locked)'!G39 -> N/A | G39: ='Calcs (hidden_locked)'!H39 ->  | H39: ='Calcs (hidden_locked)'!I39 ->  | I39: ='Calcs (hidden_locked)'!J39 ->  | J39: ='Calcs (hidden_locked)'!K39 -> 
C40: Physical Storage Capacity: Depth of Runoff from IA (range of 0 - 2, goal > 0.1, optimal 0.4) | D40: PSC | E40: in | F40: ='Calcs (hidden_locked)'!G40 -> 0.419782238 | G40: ='Calcs (hidden_locked)'!H40 ->  | H40: ='Calcs (hidden_locked)'!I40 ->  | I40: ='Calcs (hidden_locked)'!J40 ->  | J40: ='Calcs (hidden_locked)'!K40 -> 
C41: PSC Notes | F41: ='Calcs (hidden_locked)'!G211 -> PSC in optimal range 0.3 ≤ PSC ≤ 0.6 | G41: ='Calcs (hidden_locked)'!H211 ->  | H41: ='Calcs (hidden_locked)'!I211 ->  | I41: ='Calcs (hidden_locked)'!J211 ->  | J41: ='Calcs (hidden_locked)'!K211 -> 
B42: Performance Curve Removal Efficiencies | C42: Removal Efficiency: Volume | D42: VolRE | E42: - | F42: ='Calcs (hidden_locked)'!G41 -> 0.5976068622 | G42: ='Calcs (hidden_locked)'!H41 ->  | H42: ='Calcs (hidden_locked)'!I41 ->  | I42: ='Calcs (hidden_locked)'!J41 ->  | J42: ='Calcs (hidden_locked)'!K41 -> 
C43: Removal Efficiency: P | D43: PRE | E43: - | F43: ='Calcs (hidden_locked)'!G42 -> 0.7838137111 | G43: ='Calcs (hidden_locked)'!H42 ->  | H43: ='Calcs (hidden_locked)'!I42 ->  | I43: ='Calcs (hidden_locked)'!J42 ->  | J43: ='Calcs (hidden_locked)'!K42 -> 
C44: Removal Efficiency: N | D44: NRE | E44: - | F44: ='Calcs (hidden_locked)'!G43 -> 0.8979327953 | G44: ='Calcs (hidden_locked)'!H43 ->  | H44: ='Calcs (hidden_locked)'!I43 ->  | I44: ='Calcs (hidden_locked)'!J43 ->  | J44: ='Calcs (hidden_locked)'!K43 -> 
C45: Removal Efficiency: TSS | D45: TSSRE | E45: - | F45: ='Calcs (hidden_locked)'!G44 -> 0.9568686016 | G45: ='Calcs (hidden_locked)'!H44 ->  | H45: ='Calcs (hidden_locked)'!I44 ->  | I45: ='Calcs (hidden_locked)'!J44 ->  | J45: ='Calcs (hidden_locked)'!K44 -> 
C46: Removal Efficiency: Zn | D46: ZnRE | E46: - | F46: ='Calcs (hidden_locked)'!G45 -> 0.9829659096 | G46: ='Calcs (hidden_locked)'!H45 ->  | H46: ='Calcs (hidden_locked)'!I45 ->  | I46: ='Calcs (hidden_locked)'!J45 ->  | J46: ='Calcs (hidden_locked)'!K45 -> 
C47: Removal Efficiency: Bacteria | D47: FIBRE | E47: - | F47: ='Calcs (hidden_locked)'!G46 -> 0.7518819595 | G47: ='Calcs (hidden_locked)'!H46 ->  | H47: ='Calcs (hidden_locked)'!I46 ->  | I47: ='Calcs (hidden_locked)'!J46 ->  | J47: ='Calcs (hidden_locked)'!K46 -> 
B48: Loading Rates | C48: Load: Volume | D48: VolLER | E48: Mgal/yr | F48: ='Calcs (hidden_locked)'!G47 -> 0.8795500826 | G48: ='Calcs (hidden_locked)'!H47 ->  | H48: ='Calcs (hidden_locked)'!I47 ->  | I48: ='Calcs (hidden_locked)'!J47 ->  | J48: ='Calcs (hidden_locked)'!K47 -> 
C49: Load: P | D49: PLER | E49: lb/yr | F49: ='Calcs (hidden_locked)'!G48 -> 1.6464 | G49: ='Calcs (hidden_locked)'!H48 ->  | H49: ='Calcs (hidden_locked)'!I48 ->  | I49: ='Calcs (hidden_locked)'!J48 ->  | J49: ='Calcs (hidden_locked)'!K48 -> 
C50: Load: N | D50: NLER | E50: lb/yr | F50: ='Calcs (hidden_locked)'!G49 -> 11.844 | G50: ='Calcs (hidden_locked)'!H49 ->  | H50: ='Calcs (hidden_locked)'!I49 ->  | I50: ='Calcs (hidden_locked)'!J49 ->  | J50: ='Calcs (hidden_locked)'!K49 -> 
C51: Load: TSS | D51: TSSLER | E51: lb/yr | F51: ='Calcs (hidden_locked)'!G50 -> 368.76 | G51: ='Calcs (hidden_locked)'!H50 ->  | H51: ='Calcs (hidden_locked)'!I50 ->  | I51: ='Calcs (hidden_locked)'!J50 ->  | J51: ='Calcs (hidden_locked)'!K50 -> 
C52: Load: Bacteria | D52: FIBLER | E52: Billion MPN/yr | F52: ='Calcs (hidden_locked)'!G51 -> 5.376 | G52: ='Calcs (hidden_locked)'!H51 ->  | H52: ='Calcs (hidden_locked)'!I51 ->  | I52: ='Calcs (hidden_locked)'!J51 ->  | J52: ='Calcs (hidden_locked)'!K51 -> 
B53: Reductions | C53: Reduction: Volume | D53: VolRed | E53: Mgal/yr | F53: ='Calcs (hidden_locked)'!G52 -> 0.525625165 | G53: ='Calcs (hidden_locked)'!H52 ->  | H53: ='Calcs (hidden_locked)'!I52 ->  | I53: ='Calcs (hidden_locked)'!J52 ->  | J53: ='Calcs (hidden_locked)'!K52 -> 
C54: Reduction: P | D54: PRed | E54: lb/yr | F54: ='Calcs (hidden_locked)'!G53 -> 1.290470894 | G54: ='Calcs (hidden_locked)'!H53 ->  | H54: ='Calcs (hidden_locked)'!I53 ->  | I54: ='Calcs (hidden_locked)'!J53 ->  | J54: ='Calcs (hidden_locked)'!K53 -> 
C55: Reduction: N | D55: NRed | E55: lb/yr | F55: ='Calcs (hidden_locked)'!G54 -> 10.63511603 | G55: ='Calcs (hidden_locked)'!H54 ->  | H55: ='Calcs (hidden_locked)'!I54 ->  | I55: ='Calcs (hidden_locked)'!J54 ->  | J55: ='Calcs (hidden_locked)'!K54 -> 
C56: Reduction: TSS | D56: TSSRed | E56: lb/yr | F56: ='Calcs (hidden_locked)'!G55 -> 352.8548655 | G56: ='Calcs (hidden_locked)'!H55 ->  | H56: ='Calcs (hidden_locked)'!I55 ->  | I56: ='Calcs (hidden_locked)'!J55 ->  | J56: ='Calcs (hidden_locked)'!K55 -> 
C57: Reduction: Bacteria | D57: FIBRed | E57: %/yr | F57: ='Calcs (hidden_locked)'!G56 -> 0.7518819595 | G57: ='Calcs (hidden_locked)'!H56 ->  | H57: ='Calcs (hidden_locked)'!I56 ->  | I57: ='Calcs (hidden_locked)'!J56 ->  | J57: ='Calcs (hidden_locked)'!K56 -> 
B58: Costs | C58: Estimated Total Costs | E58: $ | F58: ='Calcs (hidden_locked)'!G57 -> 41000 | G58: ='Calcs (hidden_locked)'!H57 ->  | H58: ='Calcs (hidden_locked)'!I57 ->  | I58: ='Calcs (hidden_locked)'!J57 ->  | J58: ='Calcs (hidden_locked)'!K57 -> 
C59: Removal Costs: Volume | E59: $/Mgal-yr | F59: ='Calcs (hidden_locked)'!G58 -> 78000 | G59: ='Calcs (hidden_locked)'!H58 ->  | H59: ='Calcs (hidden_locked)'!I58 ->  | I59: ='Calcs (hidden_locked)'!J58 ->  | J59: ='Calcs (hidden_locked)'!K58 -> 
C60: Removal Costs: P | E60: $/lb-yr | F60: ='Calcs (hidden_locked)'!G59 -> 31770 | G60: ='Calcs (hidden_locked)'!H59 ->  | H60: ='Calcs (hidden_locked)'!I59 ->  | I60: ='Calcs (hidden_locked)'!J59 ->  | J60: ='Calcs (hidden_locked)'!K59 -> 
C61: Removal Costs: N | E61: $/lb-yr | F61: ='Calcs (hidden_locked)'!G60 -> 3860 | G61: ='Calcs (hidden_locked)'!H60 ->  | H61: ='Calcs (hidden_locked)'!I60 ->  | I61: ='Calcs (hidden_locked)'!J60 ->  | J61: ='Calcs (hidden_locked)'!K60 -> 
C62: Removal Costs: TSS | E62: $/lb-yr | F62: ='Calcs (hidden_locked)'!G61 -> 120 | G62: ='Calcs (hidden_locked)'!H61 ->  | H62: ='Calcs (hidden_locked)'!I61 ->  | I62: ='Calcs (hidden_locked)'!J61 ->  | J62: ='Calcs (hidden_locked)'!K61 -> 
C63: Removal Costs: Bacteria | E63: $/%-yr | F63: ='Calcs (hidden_locked)'!G62 -> 550 | G63: ='Calcs (hidden_locked)'!H62 ->  | H63: ='Calcs (hidden_locked)'!I62 ->  | I63: ='Calcs (hidden_locked)'!J62 ->  | J63: ='Calcs (hidden_locked)'!K62 -> 
B64: O&M | C64: Estimated O&M Hours | E64: hr/yr | F64: ='Calcs (hidden_locked)'!G63 -> 17.388 | G64: ='Calcs (hidden_locked)'!H63 ->  | H64: ='Calcs (hidden_locked)'!I63 ->  | I64: ='Calcs (hidden_locked)'!J63 ->  | J64: ='Calcs (hidden_locked)'!K63 -> 
C66: MS4 Permit SCM Performance Calculator Version 2.2 - Updated July 2021 UNH Stormwater Center
C67: https://www.unh.edu/unhsc/

Sheet Output_Summary
A2: Summary Output UNHSC Performance Curve Calculator v2.2
B3: Parameter | C3: Abbrev. | D3: Units | E3: SCM 1 | F3: SCM 2 | G3: SCM 3 | H3: SCM 4 | I3: SCM 5 | J3: TOTAL
A4: Location | B4: ID | C4: - | D4: - | E4: =IF(ISBLANK(Input_Design_Output!F2),"",Input_Design_Output!F2) -> Example Bioretention | F4: =IF(ISBLANK(Input_Design_Output!G2),"",Input_Design_Output!G2) ->  | G4: =IF(ISBLANK(Input_Design_Output!H2),"",Input_Design_Output!H2) ->  | H4: =IF(ISBLANK(Input_Design_Output!I2),"",Input_Design_Output!I2) ->  | I4: =IF(ISBLANK(Input_Design_Output!J2),"",Input_Design_Output!J2) -> 
B5: Date | C5: - | D5: - | E5: =IF(ISBLANK(Input_Design_Output!F3),"",Input_Design_Output!F3) -> 2021-07-01 | F5: =IF(ISBLANK(Input_Design_Output!G3),"",Input_Design_Output!G3) ->  | G5: =IF(ISBLANK(Input_Design_Output!H3),"",Input_Design_Output!H3) ->  | H5: =IF(ISBLANK(Input_Design_Output!I3),"",Input_Design_Output!I3) ->  | I5: =IF(ISBLANK(Input_Design_Output!J3),"",Input_Design_Output!J3) -> 
B6: Location | C6: - | D6: - | E6: =IF(ISBLANK(Input_Design_Output!F4),"",Input_Design_Output!F4) ->  | F6: =IF(ISBLANK(Input_Design_Output!G4),"",Input_Design_Output!G4) ->  | G6: =IF(ISBLANK(Input_Design_Output!H4),"",Input_Design_Output!H4) ->  | H6: =IF(ISBLANK(Input_Design_Output!I4),"",Input_Design_Output!I4) ->  | I6: =IF(ISBLANK(Input_Design_Output!J4),"",Input_Design_Output!J4) -> 
B7: Description/Notes | C7: - | D7: - | E7: =IF(ISBLANK(Input_Design_Output!F5),"",Input_Design_Output!F5) ->  | F7: =IF(ISBLANK(Input_Design_Output!G5),"",Input_Design_Output!G5) ->  | G7: =IF(ISBLANK(Input_Design_Output!H5),"",Input_Design_Output!H5) ->  | H7: =IF(ISBLANK(Input_Design_Output!I5),"",Input_Design_Output!I5) ->  | I7: =IF(ISBLANK(Input_Design_Output!J5),"",Input_Design_Output!J5) -> 
A8: Watershed | B8: Impervious Drainage Area | C8: IA | D8: ac | E8: =IF(ISBLANK(Input_Design_Output!F8),"",Input_Design_Output!F8) -> 0.84 | F8: =IF(ISBLANK(Input_Design_Output!G8),"",Input_Design_Output!G8) ->  | G8: =IF(ISBLANK(Input_Design_Output!H8),"",Input_Design_Output!H8) ->  | H8: =IF(ISBLANK(Input_Design_Output!I8),"",Input_Design_Output!I8) ->  | I8: =IF(ISBLANK(Input_Design_Output!J8),"",Input_Design_Output!J8) ->  | J8: =SUM(E8:I8) -> 0.84
B9: Land Use | C9: LU | D9: - | E9: =IF(ISBLANK(Input_Design_Output!F9),"", VLOOKUP(Input_Design_Output!F9,table_PLER_abb,8,FALSE)) -> Med Res. | F9: =IF(ISBLANK(Input_Design_Output!G9),"", VLOOKUP(Input_Design_Output!G9,table_PLER_abb,8,FALSE)) ->  | G9: =IF(ISBLANK(Input_Design_Output!H9),"", VLOOKUP(Input_Design_Output!H9,table_PLER_abb,8,FALSE)) ->  | H9: =IF(ISBLANK(Input_Design_Output!I9),"", VLOOKUP(Input_Design_Output!I9,table_PLER_abb,8,FALSE)) ->  | I9: =IF(ISBLANK(Input_Design_Output!J9),"", VLOOKUP(Input_Design_Output!J9,table_PLER_abb,8,FALSE)) -> 
A10: SCM | B10: Stormwater Control Measure | C10: SCM | D10: - | E10: =IF(ISBLANK(Input_Design_Output!F10),"",Input_Design_Output!F10) -> Bioretention/Rain Garden (no underdrains) | F10: =IF(ISBLANK(Input_Design_Output!G10),"",Input_Design_Output!G10) ->  | G10: =IF(ISBLANK(Input_Design_Output!H10),"",Input_Design_Output!H10) ->  | H10: =IF(ISBLANK(Input_Design_Output!I10),"",Input_Design_Output!I10) ->  | I10: =IF(ISBLANK(Input_Design_Output!J10),"",Input_Design_Output!J10) -> 
B11: Applicable Performance Curve | C11: - | D11: - | E11: =IF(ISBLANK(Input_Design_Output!F11),"",Input_Design_Output!F11) -> Infiltration Basin | F11: =IF(ISBLANK(Input_Design_Output!G11),"",Input_Design_Output!G11) ->  | G11: =IF(ISBLANK(Input_Design_Output!H11),"",Input_Design_Output!H11) ->  | H11: =IF(ISBLANK(Input_Design_Output!I11),"",Input_Design_Output!I11) ->  | I11: =IF(ISBLANK(Input_Design_Output!J11),"",Input_Design_Output!J11) -> 
B12: Infiltration Rate | C12: IR | D12: in/hr | E12: =IF(ISBLANK(Input_Design_Output!F12),"",Input_Design_Output!F12) -> 0.52 | F12: =IF(ISBLANK(Input_Design_Output!G12),"",Input_Design_Output!G12) ->  | G12: =IF(ISBLANK(Input_Design_Output!H12),"",Input_Design_Output!H12) ->  | H12: =IF(ISBLANK(Input_Design_Output!I12),"",Input_Design_Output!I12) ->  | I12: =IF(ISBLANK(Input_Design_Output!J12),"",Input_Design_Output!J12) -> 
A13: Intermediate Calculations | B13: Design Storage Volume | C13: DSV | D13: cf | E13: =IF(ISBLANK(Input_Design_Output!F38),"",Input_Design_Output!F38) -> 1280 | F13: =IF(ISBLANK(Input_Design_Output!G38),"",Input_Design_Output!G38) ->  | G13: =IF(ISBLANK(Input_Design_Output!H38),"",Input_Design_Output!H38) ->  | H13: =IF(ISBLANK(Input_Design_Output!I38),"",Input_Design_Output!I38) ->  | I13: =IF(ISBLANK(Input_Design_Output!J38),"",Input_Design_Output!J38) -> 
B14: Impervious to Pervious Ratio | C14: IA/perv | D14: ac/ac | E14: =IF(ISBLANK(Input_Design_Output!F39),"",Input_Design_Output!F39) -> N/A | F14: =IF(ISBLANK(Input_Design_Output!G39),"",Input_Design_Output!G39) ->  | G14: =IF(ISBLANK(Input_Design_Output!H39),"",Input_Design_Output!H39) ->  | H14: =IF(ISBLANK(Input_Design_Output!I39),"",Input_Design_Output!I39) ->  | I14: =IF(ISBLANK(Input_Design_Output!J39),"",Input_Design_Output!J39) -> 
B15: Physical Storage Capacity | C15: PSC | D15: in | E15: =IF(ISBLANK(Input_Design_Output!F40),"",Input_Design_Output!F40) -> 0.419782238 | F15: =IF(ISBLANK(Input_Design_Output!G40),"",Input_Design_Output!G40) ->  | G15: =IF(ISBLANK(Input_Design_Output!H40),"",Input_Design_Output!H40) ->  | H15: =IF(ISBLANK(Input_Design_Output!I40),"",Input_Design_Output!I40) ->  | I15: =IF(ISBLANK(Input_Design_Output!J40),"",Input_Design_Output!J40) -> 
A16: Performance Curve Removal Efficiencies | B16: Volume | C16: VolRE | D16: % | E16: =IF(ISBLANK(Input_Design_Output!F42),"",Input_Design_Output!F42) -> 0.5976068622 | F16: =IF(ISBLANK(Input_Design_Output!G42),"",Input_Design_Output!G42) ->  | G16: =IF(ISBLANK(Input_Design_Output!H42),"",Input_Design_Output!H42) ->  | H16: =IF(ISBLANK(Input_Design_Output!I42),"",Input_Design_Output!I42) ->  | I16: =IF(ISBLANK(Input_Design_Output!J42),"",Input_Design_Output!J42) -> 
B17: P | C17: PRE | D17: % | E17: =IF(ISBLANK(Input_Design_Output!F43),"",Input_Design_Output!F43) -> 0.7838137111 | F17: =IF(ISBLANK(Input_Design_Output!G43),"",Input_Design_Output!G43) ->  | G17: =IF(ISBLANK(Input_Design_Output!H43),"",Input_Design_Output!H43) ->  | H17: =IF(ISBLANK(Input_Design_Output!I43),"",Input_Design_Output!I43) ->  | I17: =IF(ISBLANK(Input_Design_Output!J43),"",Input_Design_Output!J43) -> 
B18: N | C18: NRE | D18: % | E18: =IF(ISBLANK(Input_Design_Output!F44),"",Input_Design_Output!F44) -> 0.8979327953 | F18: =IF(ISBLANK(Input_Design_Output!G44),"",Input_Design_Output!G44) ->  | G18: =IF(ISBLANK(Input_Design_Output!H44),"",Input_Design_Output!H44) ->  | H18: =IF(ISBLANK(Input_Design_Output!I44),"",Input_Design_Output!I44) ->  | I18: =IF(ISBLANK(Input_Design_Output!J44),"",Input_Design_Output!J44) -> 
B19: TSS | C19: TSSRE | D19: % | E19: =IF(ISBLANK(Input_Design_Output!F45),"",Input_Design_Output!F45) -> 0.9568686016 | F19: =IF(ISBLANK(Input_Design_Output!G45),"",Input_Design_Output!G45) ->  | G19: =IF(ISBLANK(Input_Design_Output!H45),"",Input_Design_Output!H45) ->  | H19: =IF(ISBLANK(Input_Design_Output!I45),"",Input_Design_Output!I45) ->  | I19: =IF(ISBLANK(Input_Design_Output!J45),"",Input_Design_Output!J45) -> 
B20: Zn | C20: ZnRE | D20: % | E20: =IF(ISBLANK(Input_Design_Output!F46),"",Input_Design_Output!F46) -> 0.9829659096 | F20: =IF(ISBLANK(Input_Design_Output!G46),"",Input_Design_Output!G46) ->  | G20: =IF(ISBLANK(Input_Design_Output!H46),"",Input_Design_Output!H46) ->  | H20: =IF(ISBLANK(Input_Design_Output!I46),"",Input_Design_Output!I46) ->  | I20: =IF(ISBLANK(Input_Design_Output!J46),"",Input_Design_Output!J46) -> 
B21: Bacteria | C21: FIBRE | D21: % | E21: =IF(ISBLANK(Input_Design_Output!F47),"",Input_Design_Output!F47) -> 0.7518819595 | F21: =IF(ISBLANK(Input_Design_Output!G47),"",Input_Design_Output!G47) ->  | G21: =IF(ISBLANK(Input_Design_Output!H47),"",Input_Design_Output!H47) ->  | H21: =IF(ISBLANK(Input_Design_Output!I47),"",Input_Design_Output!I47) ->  | I21: =IF(ISBLANK(Input_Design_Output!J47),"",Input_Design_Output!J47) -> 
A22: Load Export Rates | B22: Volume | C22: VolLER | D22: Mgal/yr | E22: =IF(ISBLANK(Input_Design_Output!F48),"",Input_Design_Output!F48) -> 0.8795500826 | F22: =IF(ISBLANK(Input_Design_Output!G48),"",Input_Design_Output!G48) ->  | G22: =IF(ISBLANK(Input_Design_Output!H48),"",Input_Design_Output!H48) ->  | H22: =IF(ISBLANK(Input_Design_Output!I48),"",Input_Design_Output!I48) ->  | I22: =IF(ISBLANK(Input_Design_Output!J48),"",Input_Design_Output!J48) ->  | J22: =SUM(E22:I22) -> 0.8795500826
B23: P | C23: PLER | D23: lb/yr | E23: =IF(ISBLANK(Input_Design_Output!F49),"",Input_Design_Output!F49) -> 1.6464 | F23: =IF(ISBLANK(Input_Design_Output!G49),"",Input_Design_Output!G49) ->  | G23: =IF(ISBLANK(Input_Design_Output!H49),"",Input_Design_Output!H49) ->  | H23: =IF(ISBLANK(Input_Design_Output!I49),"",Input_Design_Output!I49) ->  | I23: =IF(ISBLANK(Input_Design_Output!J49),"",Input_Design_Output!J49) ->  | J23: 1.6464
B24: N | C24: NLER | D24: lb/yr | E24: =IF(ISBLANK(Input_Design_Output!F50),"",Input_Design_Output!F50) -> 11.844 | F24: =IF(ISBLANK(Input_Design_Output!G50),"",Input_Design_Output!G50) ->  | G24: =IF(ISBLANK(Input_Design_Output!H50),"",Input_Design_Output!H50) ->  | H24: =IF(ISBLANK(Input_Design_Output!I50),"",Input_Design_Output!I50) ->  | I24: =IF(ISBLANK(Input_Design_Output!J50),"",Input_Design_Output!J50) ->  | J24: 11.844
B25: TSS | C25: TSSLER | D25: lb/yr | E25: =IF(ISBLANK(Input_Design_Output!F51),"",Input_Design_Output!F51) -> 368.76 | F25: =IF(ISBLANK(Input_Design_Output!G51),"",Input_Design_Output!G51) ->  | G25: =IF(ISBLANK(Input_Design_Output!H51),"",Input_Design_Output!H51) ->  | H25: =IF(ISBLANK(Input_Design_Output!I51),"",Input_Design_Output!I51) ->  | I25: =IF(ISBLANK(Input_Design_Output!J51),"",Input_Design_Output!J51) ->  | J25: 368.76
B26: Bacteria | C26: FIBLER | D26: Billion MPN/yr | E26: =IF(ISBLANK(Input_Design_Output!F52),"",Input_Design_Output!F52) -> 5.376 | F26: =IF(ISBLANK(Input_Design_Output!G52),"",Input_Design_Output!G52) ->  | G26: =IF(ISBLANK(Input_Design_Output!H52),"",Input_Design_Output!H52) ->  | H26: =IF(ISBLANK(Input_Design_Output!I52),"",Input_Design_Output!I52) ->  | I26: =IF(ISBLANK(Input_Design_Output!J52),"",Input_Design_Output!J52) ->  | J26: 5.376
A27: SCM Annual Performance | B27: Volume | C27: VolRed | D27: Mgal/yr | E27: =IF(ISBLANK(Input_Design_Output!F53),"",Input_Design_Output!F53) -> 0.525625165 | F27: =IF(ISBLANK(Input_Design_Output!G53),"",Input_Design_Output!G53) ->  | G27: =IF(ISBLANK(Input_Design_Output!H53),"",Input_Design_Output!H53) ->  | H27: =IF(ISBLANK(Input_Design_Output!I53),"",Input_Design_Output!I53) ->  | I27: =IF(ISBLANK(Input_Design_Output!J53),"",Input_Design_Output!J53) ->  | J27: 0.525625165
B28: P | C28: PRed | D28: lb/yr | E28: =IF(ISBLANK(Input_Design_Output!F54),"",Input_Design_Output!F54) -> 1.290470894 | F28: =IF(ISBLANK(Input_Design_Output!G54),"",Input_Design_Output!G54) ->  | G28: =IF(ISBLANK(Input_Design_Output!H54),"",Input_Design_Output!H54) ->  | H28: =IF(ISBLANK(Input_Design_Output!I54),"",Input_Design_Output!I54) ->  | I28: =IF(ISBLANK(Input_Design_Output!J54),"",Input_Design_Output!J54) ->  | J28: 1.290470894
B29: N | C29: NRed | D29: lb/yr | E29: =IF(ISBLANK(Input_Design_Output!F55),"",Input_Design_Output!F55) -> 10.63511603 | F29: =IF(ISBLANK(Input_Design_Output!G55),"",Input_Design_Output!G55) ->  | G29: =IF(ISBLANK(Input_Design_Output!H55),"",Input_Design_Output!H55) ->  | H29: =IF(ISBLANK(Input_Design_Output!I55),"",Input_Design_Output!I55) ->  | I29: =IF(ISBLANK(Input_Design_Output!J55),"",Input_Design_Output!J55) ->  | J29: 10.63511603
B30: TSS | C30: TSSRed | D30: lb/yr | E30: =IF(ISBLANK(Input_Design_Output!F56),"",Input_Design_Output!F56) -> 352.8548655 | F30: =IF(ISBLANK(Input_Design_Output!G56),"",Input_Design_Output!G56) ->  | G30: =IF(ISBLANK(Input_Design_Output!H56),"",Input_Design_Output!H56) ->  | H30: =IF(ISBLANK(Input_Design_Output!I56),"",Input_Design_Output!I56) ->  | I30: =IF(ISBLANK(Input_Design_Output!J56),"",Input_Design_Output!J56) ->  | J30: 352.8548655
B31: Bacteria | C31: FIBRed | D31: %/yr | E31: =IF(ISBLANK(Input_Design_Output!F57),"",Input_Design_Output!F57) -> 0.7518819595 | F31: =IF(ISBLANK(Input_Design_Output!G57),"",Input_Design_Output!G57) ->  | G31: =IF(ISBLANK(Input_Design_Output!H57),"",Input_Design_Output!H57) ->  | H31: =IF(ISBLANK(Input_Design_Output!I57),"",Input_Design_Output!I57) ->  | I31: =IF(ISBLANK(Input_Design_Output!J57),"",Input_Design_Output!J57) ->  | J31: =SUMPRODUCT(E26:I26,E31:I31)/SUM(E26:I26) -> 0.7518819595
A32: Costs | B32: Total SCM Costs | C32: - | D32: $ | E32: =IF(ISBLANK(Input_Design_Output!F58),"",Input_Design_Output!F58) -> 41000 | F32: =IF(ISBLANK(Input_Design_Output!G58),"",Input_Design_Output!G58) ->  | G32: =IF(ISBLANK(Input_Design_Output!H58),"",Input_Design_Output!H58) ->  | H32: =IF(ISBLANK(Input_Design_Output!I58),"",Input_Design_Output!I58) ->  | I32: =IF(ISBLANK(Input_Design_Output!J58),"",Input_Design_Output!J58) ->  | J32: =IF(SUM(E32:I32)=0,"N/A",SUM(E32:I32)) -> 41000
B33: Volume | C33: - | D33: $/Mgal-yr | E33: =IF(ISBLANK(Input_Design_Output!F59),"",Input_Design_Output!F59) -> 78000 | F33: =IF(ISBLANK(Input_Design_Output!G59),"",Input_Design_Output!G59) ->  | G33: =IF(ISBLANK(Input_Design_Output!H59),"",Input_Design_Output!H59) ->  | H33: =IF(ISBLANK(Input_Design_Output!I59),"",Input_Design_Output!I59) ->  | I33: =IF(ISBLANK(Input_Design_Output!J59),"",Input_Design_Output!J59) ->  | J33: 78000
B34: P | C34: - | D34: $/lb-yr | E34: =IF(ISBLANK(Input_Design_Output!F60),"",Input_Design_Output!F60) -> 31770 | F34: =IF(ISBLANK(Input_Design_Output!G60),"",Input_Design_Output!G60) ->  | G34: =IF(ISBLANK(Input_Design_Output!H60),"",Input_Design_Output!H60) ->  | H34: =IF(ISBLANK(Input_Design_Output!I60),"",Input_Design_Output!I60) ->  | I34: =IF(ISBLANK(Input_Design_Output!J60),"",Input_Design_Output!J60) ->  | J34: 31770
B35: N | C35: - | D35: $/lb-yr | E35: =IF(ISBLANK(Input_Design_Output!F61),"",Input_Design_Output!F61) -> 3860 | F35: =IF(ISBLANK(Input_Design_Output!G61),"",Input_Design_Output!G61) ->  | G35: =IF(ISBLANK(Input_Design_Output!H61),"",Input_Design_Output!H61) ->  | H35: =IF(ISBLANK(Input_Design_Output!I61),"",Input_Design_Output!I61) ->  | I35: =IF(ISBLANK(Input_Design_Output!J61),"",Input_Design_Output!J61) ->  | J35: 3860
B36: TSS | C36: - | D36: $/lb-yr | E36: =IF(ISBLANK(Input_Design_Output!F62),"",Input_Design_Output!F62) -> 120 | F36: =IF(ISBLANK(Input_Design_Output!G62),"",Input_Design_Output!G62) ->  | G36: =IF(ISBLANK(Input_Design_Output!H62),"",Input_Design_Output!H62) ->  | H36: =IF(ISBLANK(Input_Design_Output!I62),"",Input_Design_Output!I62) ->  | I36: =IF(ISBLANK(Input_Design_Output!J62),"",Input_Design_Output!J62) ->  | J36: 120
B37: Bacteria | C37: - | D37: $/%-yr | E37: =IF(ISBLANK(Input_Design_Output!F63),"",Input_Design_Output!F63) -> 550 | F37: =IF(ISBLANK(Input_Design_Output!G63),"",Input_Design_Output!G63) ->  | G37: =IF(ISBLANK(Input_Design_Output!H63),"",Input_Design_Output!H63) ->  | H37: =IF(ISBLANK(Input_Design_Output!I63),"",Input_Design_Output!I63) ->  | I37: =IF(ISBLANK(Input_Design_Output!J63),"",Input_Design_Output!J63) ->  | J37: 550
A38: O&M | B38: Estimated O&M Hours | C38: O&M hr | D38: hr/yr | E38: =IF(ISBLANK(Input_Design_Output!F64),"",Input_Design_Output!F64) -> 17.388 | F38: =IF(ISBLANK(Input_Design_Output!G64),"",Input_Design_Output!G64) ->  | G38: =IF(ISBLANK(Input_Design_Output!H64),"",Input_Design_Output!H64) ->  | H38: =IF(ISBLANK(Input_Design_Output!I64),"",Input_Design_Output!I64) ->  | I38: =IF(ISBLANK(Input_Design_Output!J64),"",Input_Design_Output!J64) ->  | J38: =SUM(E38:I38) -> 17.388
